{"text_format":"1","workbook":"xlsx","n_sheets":41,"sheets":["Sheet1","リスト","入力値","バック","結果反映シート","（参考）","電気工事","橋梁","造園","コンクリート圧送","防水施工","トンネル","建設塗装","左官","機械土工","海上起重","ＰＣ","鉄筋","圧接","型枠","配管","とび","切断穿孔","内装仕上","サッシ","エクステリア","建築板金","外壁仕上","ダクト","保温保冷","グラウト","冷凍空調","運動施設","基礎くい工事","タイル張り","道路標識","消防施設","建築大工","硝子工事","ＡＬＣ","土工"],"not_rendered":{"charts":0,"images":1,"macros":1,"external_links":0,"defined_names":2,"comments":0,"pivot_tables":0},"unopened":[],"bounds":{"document_bytes":16777216,"sheet_cells":100000,"rows_first":2000,"rows_last":500,"rows_between":2000,"halvings":0,"cell_chars":16384,"cell_head_chars":4096},"cells_cut":0,"cells_raw":0,"read":"whole","date_system":"1900"}

{"sheet":"Sheet1","index":0,"n_rows":3,"n_cols":8,"rows_kept":3,"cut":false,"hidden":true,"merged":[]}
[]
[]
[null,"就業経験",null,"保有資格",null,null,null,"職長経験"]

{"sheet":"リスト","index":1,"n_rows":471,"n_cols":10,"rows_kept":471,"cut":false,"hidden":true,"merged":[]}
[]
[null,"就業経験",null,null,null,"職長経験",null,null,"保有資格"]
[null,"１年（215日）",null,null,null,"１年（215日）",null,null,"登録鉄筋基幹技能者",{"$f":"IF(COUNTIF($I$3:$I$471,I3)>1,\"重複\",\"\")","v":""}]
[null,"２年（430日）",null,null,null,"２年（430日）",null,null,"優秀施工者国土交通大臣顕彰","重複"]
[null,"３年（645日）",null,null,null,"３年（645日）",null,null,"安全優良職長厚生労働大臣顕彰","重複"]
[null,"４年（860日）",null,null,null,"４年（860日）",null,null,"卓越した技術者（現代の名工）","重複"]
[null,"５年（1075日）",null,null,null,"５年（1075日）",null,null,"一級鉄筋施工技能士（組立て、または施工図）",""]
[null,"６年（1290日）",null,null,null,"６年（1290日）",null,null,"玉掛技能講習","重複"]
[null,"７年（1505日）",null,null,null,"７年（1505日）",null,null,"登録型枠基幹技能者",""]
[null,"８年（1720日）",null,null,null,"８年（1720日）",null,null,"優秀施工者国土交通大臣顕彰","重複"]
[null,"９年（1935日）",null,null,null,"９年（1935日）",null,null,"型枠施工１級技能士",""]
[null,"１０年（2150日）",null,null,null,"１０年（2150日）",null,null,"型枠支保工の組立て等作業主任者技能講習","重複"]
[null,"１１年（2365日）",null,null,null,"１１年（2365日）",null,null,"足場の組立て等作業従事者特別教育","重複"]
[null,null,null,null,null,null,null,null,"足場の組立て等作業主任者技能講習","重複"]
[null,"１２年（2580日）",null,null,null,"１２年（2580日）",null,null,"職長・安全衛生責任者教育","重複"]
[null,null,null,null,null,null,null,null,"職長教育","重複"]
[null,null,null,null,null,null,null,null,"玉掛技能講習","重複"]
[null,null,null,null,null,null,null,null,"丸のこ等取扱作業従事者安全衛生教育","重複"]
[null,null,null,null,null,null,null,null,"登録機械土工基幹技術者講習",""]
[null,null,null,null,null,null,null,null,"１級建設機械施工技士","重複"]
[null,null,null,null,null,null,null,null,"１級土木施工技士",""]
[null,null,null,null,null,null,null,null,"優秀施工者国土交通大臣顕彰","重複"]
[null,null,null,null,null,null,null,null,"車両系建設機械（整地・運搬・積込み用及び掘削用）運転業務従事者安全衛生教育","重複"]
[null,null,null,null,null,null,null,null,"青年優秀施工者土地・建設産業局長顕彰","重複"]
[null,null,null,null,null,null,null,null,"車両系建設機械（整地・運搬・積込み用及び掘削用）運転技能講習","重複"]
[null,null,null,null,null,null,null,null,"ローラーの運転の業務に係る特別教育",""]
[null,null,null,null,null,null,null,null,"登録左官基幹技術者",""]
[null,null,null,null,null,null,null,null,"１級建築施工管理技士","重複"]
[null,null,null,null,null,null,null,null,"優秀施工者国土交通大臣顕彰","重複"]
[null,null,null,null,null,null,null,null,"安全優良職長厚生労働大臣顕彰","重複"]
[null,null,null,null,null,null,null,null,"卓越した技術者（現代の名工）","重複"]
[null,null,null,null,null,null,null,null,"１級左官技能士",""]
[null,null,null,null,null,null,null,null,"青年優秀施工者土地・建設産業局長顕彰","重複"]
[null,null,null,null,null,null,null,null,"２級左官技能士",""]
[null,null,null,null,null,null,null,null,"研削といしの取替え等の業務特別教育及び足場の組立て作業従事者特別教育",""]
[null,null,null,null,null,null,null,null,"登録内装仕上工事基幹技能者",""]
[null,null,null,null,null,null,null,null,"優秀施工者国土交通大臣顕彰","重複"]
[null,null,null,null,null,null,null,null,"安全優良職長厚生労働大臣顕彰","重複"]
[null,null,null,null,null,null,null,null,"１級建築施工管理技士","重複"]
[null,null,null,null,null,null,null,null,"卓越した技術者（現代の名工）","重複"]
[null,null,null,null,null,null,null,null,"１級技能士（内装仕上げ施工職種または表装職種）",""]
[null,null,null,null,null,null,null,null,"青年優秀施工者土地・建設産業局長顕彰","重複"]
[null,null,null,null,null,null,null,null,"２級建築施工管理技士","重複"]
[null,null,null,null,null,null,null,null,"２級技能士（内装仕上げ施工職種または表装職種）",""]
[null,null,null,null,null,null,null,null,"足場の組立て等作業従事者特別教育","重複"]
[null,null,null,null,null,null,null,null,"自由研削といしの取替え等の業務特別教育","重複"]
[null,null,null,null,null,null,null,null,"有機溶剤作業主任者技能講習","重複"]
[null,null,null,null,null,null,null,null,"丸のこ等取扱作業者安全教育",""]
[null,null,null,null,null,null,null,null,"玉掛技能講習","重複"]
[null,null,null,null,null,null,null,null,"登録防水基幹技能者",""]
[null,null,null,null,null,null,null,null,"優秀施工者国土交通大臣顕彰","重複"]
[null,null,null,null,null,null,null,null,"１級防水施工技能士",""]
[null,null,null,null,null,null,null,null,"２級防水施工技能士",""]
[null,null,null,null,null,null,null,null,"玉掛技能講習","重複"]
[null,null,null,null,null,null,null,null,"登録切断穿孔基幹技能者",""]
[null,null,null,null,null,null,null,null,"優秀施工者国土交通大臣顕彰","重複"]
[null,null,null,null,null,null,null,null,"職長・安全衛生責任者教育","重複"]
[null,null,null,null,null,null,null,null,"切断穿孔技士",""]
[null,null,null,null,null,null,null,null,"登録サッシ・カーテンウォール基幹技能者",""]
[null,null,null,null,null,null,null,null,"優秀施工者国土交通大臣顕彰","重複"]
[null,null,null,null,null,null,null,null,"１級ビル用サッシ施工作業技能士",""]
[null,null,null,null,null,null,null,null,"１級金属製カーテンウォール工事作業技能士",""]
[null,null,null,null,null,null,null,null,"職長・安全衛生責任者教育","重複"]
[null,null,null,null,null,null,null,null,"２級ビル用サッシ施工作業技能士",""]
[null,null,null,null,null,null,null,null,"２級金属製カーテンウォール工事作業技能士",""]
[null,null,null,null,null,null,null,null,"職長・安全衛生責任者教育","重複"]
[null,null,null,null,null,null,null,null,"低圧電気取扱特別教育",{"$f":"IF(COUNTIF($I$3:$I$471,I67)>1,\"重複\",\"\")","v":""}]
[null,null,null,null,null,null,null,null,"足場の組立て等作業従事者特別教育","重複"]
[null,null,null,null,null,null,null,null,"研削といしの取替え等の業務特別教育","重複"]
[null,null,null,null,null,null,null,null,"登録建築大工基幹技能者",""]
[null,null,null,null,null,null,null,null,"優秀施工者国土交通大臣顕彰","重複"]
[null,null,null,null,null,null,null,null,"安全優良職長厚生労働大臣顕彰","重複"]
[null,null,null,null,null,null,null,null,"卓越した技術者（現代の名工）","重複"]
[null,null,null,null,null,null,null,null,"技能グランプリ（金賞・銀賞・銅賞・敢闘賞）","重複"]
[null,null,null,null,null,null,null,null,"１級建築大工技能士",""]
[null,null,null,null,null,null,null,null,"２級建築大工技能士",""]
[null,null,null,null,null,null,null,null,"枠組壁建築技能士",""]
[null,null,null,null,null,null,null,null,"１級建築施工管理技士","重複"]
[null,null,null,null,null,null,null,null,"２級建築施工管理技士","重複"]
[null,null,null,null,null,null,null,null,"１級建築士",""]
[null,null,null,null,null,null,null,null,"２級建築士",""]
[null,null,null,null,null,null,null,null,"木造建築士",""]
[null,null,null,null,null,null,null,null,"職業訓練指導員（建築科・枠組壁建築科・プレハブ建築科）","重複"]
[null,null,null,null,null,null,null,null,"木材加工用機械作業主任者技能講習",""]
[null,null,null,null,null,null,null,null,"建築物の鉄骨の組立て等作業主任者技能講習",""]
[null,null,null,null,null,null,null,null,"足場の組立等作業主任者技能講習",""]
[null,null,null,null,null,null,null,null,"木造建築物の組立て等作業主任者技能講習","重複"]
[null,null,null,null,null,null,null,null,"青年優秀施工者土地・建設産業局長顕彰","重複"]
[null,null,null,null,null,null,null,null,"プレハブ建築マイスター",""]
[null,null,null,null,null,null,null,null,"認定ログビルダー",""]
[null,null,null,null,null,null,null,null,"丸のこ等取扱作業従事者安全衛生教育","重複"]
[null,null,null,null,null,null,null,null,"足場の組立て等作業従事者特別教育","重複"]
[null,null,null,null,null,null,null,null,"足場の組立て等作業主任者技能講習","重複"]
[null,null,null,null,null,null,null,null,"登録トンネル基幹技能者",""]
[null,null,null,null,null,null,null,null,"優秀施工者国土交通大臣顕彰","重複"]
[null,null,null,null,null,null,null,null,"ずい道等の掘削等作業主任者又はずい道等の覆工作業主任者",""]
[null,null,null,null,null,null,null,null,"発破技士","重複"]
[null,null,null,null,null,null,null,null,"火薬類取扱保安責任者（甲・乙種）",""]
[null,null,null,null,null,null,null,null,"職長・安全衛生責任者教育","重複"]
[null,null,null,null,null,null,null,null,"車両系建設機械（機体重量３t以上の整地・運搬・積込み・掘削用機械）の運転技能講習",""]
[null,null,null,null,null,null,null,null,"玉掛技能講習","重複"]
[null,null,null,null,null,null,null,null,"高所作業車運転特別教育","重複"]
[null,null,null,null,null,null,null,null,"特定粉じん作業特別教育",""]
[null,null,null,null,null,null,null,null,"ずい道等の掘削・運搬・覆工等の内作業特別教育",""]
[null,null,null,null,null,null,null,null,"登録圧接基幹技能者",""]
[null,null,null,null,null,null,null,null,"優秀施工者国土交通大臣顕彰","重複"]
[null,null,null,null,null,null,null,null,"職長・安全衛生責任者教育","重複"]
[null,null,null,null,null,null,null,null,"足場の組立等作業従事者特別教育",""]
[null,null,null,null,null,null,null,null,"ガス溶接技能講習","重複"]
[null,null,null,null,null,null,null,null,"研削といしの取替え等の業務特別教育","重複"]
[null,null,null,null,null,null,null,null,"登録電気工事基幹技能者",""]
[null,null,null,null,null,null,null,null,"優秀施工者国土交通大臣顕彰","重複"]
[null,null,null,null,null,null,null,null,"卓越した技術者（現代の名工）","重複"]
[null,null,null,null,null,null,null,null,"第一種電気工事士免状取得者",""]
[null,null,null,null,null,null,null,null,"第一種電気工事士試験合格者で認定電気工事従事者（就業日数1505日（７年）以上）",""]
[null,null,null,null,null,null,null,null,"青年優秀施工者土地・建設産業局長顕彰（建設ジュニアマスター）で第二種電気工事士免状取得者（就業日数1505日（７年）以上）",""]
[null,null,null,null,null,null,null,null,"第二種電気工事士免状取得者で認定電気工事従事者（就業日数2150日（１０年）以上）",""]
[null,null,null,null,null,null,null,null,"第一種電気工事士試験合格者",""]
[null,null,null,null,null,null,null,null,"第二種電気工事士免状取得者",""]
[null,null,null,null,null,null,null,null,"登録コンクリート圧送基幹技能者",""]
[null,null,null,null,null,null,null,null,"優秀施工者国土交通大臣顕彰","重複"]
[null,null,null,null,null,null,null,null,"１級コンクリート圧送施工技能士",""]
[null,null,null,null,null,null,null,null,"青年優秀施工者土地・建設産業局長顕彰","重複"]
[null,null,null,null,null,null,null,null,"職長・安全衛生責任者教育","重複"]
[null,null,null,null,null,null,null,null,"２級コンクリート圧送施工技能士",""]
[null,null,null,null,null,null,null,null,"コンクリート打設用機械の作業装置の操作特別教育","重複"]
[null,null,null,null,null,null,null,null,"登録鳶・土工基幹技能者",""]
[null,null,null,null,null,null,null,null,"優秀施工者国土交通大臣顕彰","重複"]
[null,null,null,null,null,null,null,null,"１級とび技能士",""]
[null,null,null,null,null,null,null,null,"１級建築施工管理技士","重複"]
[null,null,null,null,null,null,null,null,"２級建築施工管理技士",{"$f":"IF(COUNTIF($I$3:$I$471,I131)>1,\"重複\",\"\")","v":"重複"}]
[null,null,null,null,null,null,null,null,"２級とび技能士",""]
[null,null,null,null,null,null,null,null,"足場の組立て等作業主任者技能講習","重複"]
[null,null,null,null,null,null,null,null,"型枠支保工の組立て等作業主任者技能講習","重複"]
[null,null,null,null,null,null,null,null,"地山の掘削及び土止め支保工作業主任者技能講習","重複"]
[null,null,null,null,null,null,null,null,"建築物等の鉄骨の組立て等作業主任者技能講習",""]
[null,null,null,null,null,null,null,null,"木造建築物の組立て等作業主任者技能講習","重複"]
[null,null,null,null,null,null,null,null,"コンクリート造の工作物の解体等作業主任者技能講習","重複"]
[null,null,null,null,null,null,null,null,"小型移動式クレーン運転技能講習","重複"]
[null,null,null,null,null,null,null,null,"車両系建設機械（整地・運搬・積込み用及び掘削用）運転技能講習","重複"]
[null,null,null,null,null,null,null,null,"車両系建設機械（解体用）運転技能講習","重複"]
[null,null,null,null,null,null,null,null,"車両系建設機械（基礎工事用）技能運転講習",""]
[null,null,null,null,null,null,null,null,"高所作業車運転技能講習","重複"]
[null,null,null,null,null,null,null,null,"ガス溶接技能講習","重複"]
[null,null,null,null,null,null,null,null,"玉掛技能講習","重複"]
[null,null,null,null,null,null,null,null,"職長・安全衛生責任者教育","重複"]
[null,null,null,null,null,null,null,null,"足場の組立て等作業主任者技能講習","重複"]
[null,null,null,null,null,null,null,null,"型枠支保工の組立て等作業主任者技能講習","重複"]
[null,null,null,null,null,null,null,null,"地山の掘削及び土止め支保工作業主任者技能講習","重複"]
[null,null,null,null,null,null,null,null,"木造建築物の組立て等作業主任者技能講習","重複"]
[null,null,null,null,null,null,null,null,"コンクリート造の工作物の解体等作業主任者技能講習","重複"]
[null,null,null,null,null,null,null,null,"小型移動式クレーン運転技能講習","重複"]
[null,null,null,null,null,null,null,null,"車両系建設機械（整地・運搬・積込み用及び掘削用）運転技能講習","重複"]
[null,null,null,null,null,null,null,null,"車両系建設機械（解体用）運転技能講習","重複"]
[null,null,null,null,null,null,null,null,"車両系建設機械（基礎工事用）運転技能講習",""]
[null,null,null,null,null,null,null,null,"高所作業車運転技能講習","重複"]
[null,null,null,null,null,null,null,null,"ガス溶接技能講習","重複"]
[null,null,null,null,null,null,null,null,"登録橋梁基幹技能者",""]
[null,null,null,null,null,null,null,null,"１級土木施工管理技士","重複"]
[null,null,null,null,null,null,null,null,"優秀施工者国土交通大臣顕彰","重複"]
[null,null,null,null,null,null,null,null,"安全優良職長厚生労働大臣顕彰","重複"]
[null,null,null,null,null,null,null,null,"鋼橋架設等作業主任者技能講習",""]
[null,null,null,null,null,null,null,null,"足場の組立て等作業主任者技能講習","重複"]
[null,null,null,null,null,null,null,null,"青年優秀施工者土地・建設産業局長顕彰","重複"]
[null,null,null,null,null,null,null,null,"職長・安全衛生責任者教育","重複"]
[null,null,null,null,null,null,null,null,"玉掛技能講習","重複"]
[null,null,null,null,null,null,null,null,"足場の組立て等作業従事者特別教育","重複"]
[null,null,null,null,null,null,null,null,"登録海上起重基幹技能者",""]
[null,null,null,null,null,null,null,null,"優秀施工者国土交通大臣顕彰","重複"]
[null,null,null,null,null,null,null,null,"海上起重基幹技能者",""]
[null,null,null,null,null,null,null,null,"職長・安全衛生責任者教育","重複"]
[null,null,null,null,null,null,null,null,"職長教育","重複"]
[null,null,null,null,null,null,null,null,"玉掛技能講習","重複"]
[null,null,null,null,null,null,null,null,"一級小型船舶操縦士",""]
[null,null,null,null,null,null,null,null,"二級小型船舶操縦士",""]
[null,null,null,null,null,null,null,null,"登録保温保冷基幹技能者",""]
[null,null,null,null,null,null,null,null,"優秀施工者国土交通大臣顕彰","重複"]
[null,null,null,null,null,null,null,null,"１級熱絶縁施工技能士",""]
[null,null,null,null,null,null,null,null,"職長・安全衛生責任者教育","重複"]
[null,null,null,null,null,null,null,null,"２級熱絶縁施工技能士",""]
[null,null,null,null,null,null,null,null,"足場の組立て等作業主任者技能講習","重複"]
[null,null,null,null,null,null,null,null,"足場の組立て等作業従事者特別教育","重複"]
[null,null,null,null,null,null,null,null,"高所作業車運転技能講習","重複"]
[null,null,null,null,null,null,null,null,"高所作業車運転特別教育","重複"]
[null,null,null,null,null,null,null,null,"玉掛技能講習","重複"]
[null,null,null,null,null,null,null,null,"玉掛業務特別教育",""]
[null,null,null,null,null,null,null,null,"低圧電気取扱業務特別教育","重複"]
[null,null,null,null,null,null,null,null,"酸素欠乏危険作業特別教育","重複"]
[null,null,null,null,null,null,null,null,"石綿等が使用されている建築物等の解体等の作業、封じ込めまたは囲い込みの作業特別教育",""]
[null,null,null,null,null,null,null,null,"登録消火設備基幹技能者",""]
[null,null,null,null,null,null,null,null,"優秀施工者国土交通大臣顕彰","重複"]
[null,null,null,null,null,null,null,null,"消防設備士",""]
[null,null,null,null,null,null,null,null,"消防設備点検資格者",""]
[null,null,null,null,null,null,null,null,"青年優秀施工者土地・建設産業局長顕彰","重複"]
[null,null,null,null,null,null,null,null,"高所作業車運転技能講習",{"$f":"IF(COUNTIF($I$3:$I$471,I195)>1,\"重複\",\"\")","v":"重複"}]
[null,null,null,null,null,null,null,null,"酸素欠乏危険作業主任者技能講習","重複"]
[null,null,null,null,null,null,null,null,"職長・安全衛生責任者教育","重複"]
[null,null,null,null,null,null,null,null,"高所作業車運転特別教育","重複"]
[null,null,null,null,null,null,null,null,"酸素欠乏危険作業特別教育","重複"]
[null,null,null,null,null,null,null,null,"低圧電気取扱業務特別教育","重複"]
[null,null,null,null,null,null,null,null,"あと施工アンカー施工士",""]
[null,null,null,null,null,null,null,null,"登録ＡＬＣ基幹技能者",""]
[null,null,null,null,null,null,null,null,"優秀施工者国土交通大臣顕彰","重複"]
[null,null,null,null,null,null,null,null,"エーエルシーパネル施工技能士",""]
[null,null,null,null,null,null,null,null,"職長・安全衛生責任者教育","重複"]
[null,null,null,null,null,null,null,null,"アーク溶接特別教育",""]
[null,null,null,null,null,null,null,null,"玉掛技能講習","重複"]
[null,null,null,null,null,null,null,null,"登録建設塗装基幹技能者",""]
[null,null,null,null,null,null,null,null,"優秀施工者国土交通大臣顕彰","重複"]
[null,null,null,null,null,null,null,null,"１級建築施工管理技士","重複"]
[null,null,null,null,null,null,null,null,"１級土木施工管理技士","重複"]
[null,null,null,null,null,null,null,null,"建築仕上げ改修施工管理技士",""]
[null,null,null,null,null,null,null,null,"卓越した技術者（現代の名工）","重複"]
[null,null,null,null,null,null,null,null,"１級建築塗装作業技能士",""]
[null,null,null,null,null,null,null,null,"１級鋼橋塗装作業技能士",""]
[null,null,null,null,null,null,null,null,"２級建築施工管理技士","重複"]
[null,null,null,null,null,null,null,null,"２級土木施工管理技士","重複"]
[null,null,null,null,null,null,null,null,"職長・安全衛生責任者教育","重複"]
[null,null,null,null,null,null,null,null,"２級建築塗装作業技能士",""]
[null,null,null,null,null,null,null,null,"２級鋼橋塗装作業技能士",""]
[null,null,null,null,null,null,null,null,"甲種危険物取扱者","重複"]
[null,null,null,null,null,null,null,null,"乙種危険物取扱者","重複"]
[null,null,null,null,null,null,null,null,"有機溶剤作業主任者技能講習","重複"]
[null,null,null,null,null,null,null,null,"高所作業車運転技能講習","重複"]
[null,null,null,null,null,null,null,null,"玉掛技能講習","重複"]
[null,null,null,null,null,null,null,null,"小型移動式クレーン運転技能講習","重複"]
[null,null,null,null,null,null,null,null,"足場の組立て等作業主任者技能講習","重複"]
[null,null,null,null,null,null,null,null,"酸素欠乏危険作業主任者技能講習","重複"]
[null,null,null,null,null,null,null,null,"酸素欠乏・硫化水素危険作業主任者技能講習","重複"]
[null,null,null,null,null,null,null,null,"特定化学物質等作業主任者技能講習","重複"]
[null,null,null,null,null,null,null,null,"鉛作業主任者技能講習","重複"]
[null,null,null,null,null,null,null,null,"四アルキル鉛等作業主任者技能講習","重複"]
[null,null,null,null,null,null,null,null,"石綿作業主任者技能講習","重複"]
[null,null,null,null,null,null,null,null,"登録ＰＣ基幹技能者",""]
[null,null,null,null,null,null,null,null,"優秀施工者国土交通大臣顕彰","重複"]
[null,null,null,null,null,null,null,null,"１級土木施工管理技士","重複"]
[null,null,null,null,null,null,null,null,"２級土木施工管理技士","重複"]
[null,null,null,null,null,null,null,null,"１級建築施工管理技士","重複"]
[null,null,null,null,null,null,null,null,"２級建築施工管理技士","重複"]
[null,null,null,null,null,null,null,null,"コンクリート橋架設等作業主任者技能講習",""]
[null,null,null,null,null,null,null,null,"型枠支保工の組立て等作業主任者技能講習","重複"]
[null,null,null,null,null,null,null,null,"職長・安全衛生責任者教育","重複"]
[null,null,null,null,null,null,null,null,"玉掛技能講習","重複"]
[null,null,null,null,null,null,null,null,"足場の組立等の業務に係る特別教育",""]
[null,null,null,null,null,null,null,null,"登録外壁仕上基幹技能者",""]
[null,null,null,null,null,null,null,null,"優秀施工者国土交通大臣顕彰","重複"]
[null,null,null,null,null,null,null,null,"１級建築施工管理技士","重複"]
[null,null,null,null,null,null,null,null,"１級土木施工管理技士","重複"]
[null,null,null,null,null,null,null,null,"建築仕上げ改修施工管理技術者",""]
[null,null,null,null,null,null,null,null,"卓越した技術者（現代の名工）","重複"]
[null,null,null,null,null,null,null,null,"外壁仕上１級技能士",""]
[null,null,null,null,null,null,null,null,"２級建築施工管理技士","重複"]
[null,null,null,null,null,null,null,null,"２級土木施工管理技士","重複"]
[null,null,null,null,null,null,null,null,"職長・安全衛生責任者教育","重複"]
[null,null,null,null,null,null,null,null,"甲種危険物取扱者","重複"]
[null,null,null,null,null,null,null,null,"乙種危険物取扱者","重複"]
[null,null,null,null,null,null,null,null,"有機溶剤作業主任者技能講習","重複"]
[null,null,null,null,null,null,null,null,"高所作業車運転技能講習","重複"]
[null,null,null,null,null,null,null,null,"玉掛け技能講習",{"$f":"IF(COUNTIF($I$3:$I$471,I259)>1,\"重複\",\"\")","v":"重複"}]
[null,null,null,null,null,null,null,null,"小型移動式クレーン運転技能講習","重複"]
[null,null,null,null,null,null,null,null,"足場の組立て等作業主任者技能講習","重複"]
[null,null,null,null,null,null,null,null,"酸素欠乏危険作業主任者技能講習","重複"]
[null,null,null,null,null,null,null,null,"酸素欠乏・硫化水素危険作業主任者技能講習","重複"]
[null,null,null,null,null,null,null,null,"特定化学物質等作業主任者技能講習","重複"]
[null,null,null,null,null,null,null,null,"鉛作業主任者技能講習","重複"]
[null,null,null,null,null,null,null,null,"四アルキル鉛等作業主任者技能講習","重複"]
[null,null,null,null,null,null,null,null,"特定化学物質等作業主任者技能講習","重複"]
[null,null,null,null,null,null,null,null,"四アルキル鉛等作業主任者技能講習","重複"]
[null,null,null,null,null,null,null,null,"石綿作業主任者技能講習","重複"]
[null,null,null,null,null,null,null,null,"登録基礎工基幹技能者",""]
[null,null,null,null,null,null,null,null,"１級土木施工管理技士","重複"]
[null,null,null,null,null,null,null,null,"１級建築施工管理技士","重複"]
[null,null,null,null,null,null,null,null,"１級建設機械施工技士","重複"]
[null,null,null,null,null,null,null,null,"優秀施工者国土交通大臣顕彰","重複"]
[null,null,null,null,null,null,null,null,"基礎施工士",""]
[null,null,null,null,null,null,null,null,"２級土木施工管理技士","重複"]
[null,null,null,null,null,null,null,null,"２級建築施工管理技士","重複"]
[null,null,null,null,null,null,null,null,"２級建設機械施工技士","重複"]
[null,null,null,null,null,null,null,null,"車両系建設機械（基礎工事用）運転業務従事者安全衛生教育",""]
[null,null,null,null,null,null,null,null,"車両系建設機械（整地・運搬・積込み用及び掘削用）運転業務従事者安全衛生教育","重複"]
[null,null,null,null,null,null,null,null,"移動式クレーン運転士安全衛生教育",""]
[null,null,null,null,null,null,null,null,"小型車両系建設機械（整地運搬積込機・掘削機・基礎工事機・解体用機械）の運転特別教育",""]
[null,null,null,null,null,null,null,null,"小型移動式クレーン運転技能講習","重複"]
[null,null,null,null,null,null,null,null,"玉掛技能講習","重複"]
[null,null,null,null,null,null,null,null,"基礎杭溶接管理技術者",""]
[null,null,null,null,null,null,null,null,"基礎杭溶接技能者",""]
[null,null,null,null,null,null,null,null,"登録タイル張り基幹技能者",""]
[null,null,null,null,null,null,null,null,"優秀施工者国土交通大臣顕彰","重複"]
[null,null,null,null,null,null,null,null,"タイル張り１級技能士",""]
[null,null,null,null,null,null,null,null,"職長・安全衛生責任者教育","重複"]
[null,null,null,null,null,null,null,null,"足場の組立て等作業従事者特別教育","重複"]
[null,null,null,null,null,null,null,null,"自由研削といしの取替え等の業務特別教育","重複"]
[null,null,null,null,null,null,null,null,"登録硝子工事基幹技能者",""]
[null,null,null,null,null,null,null,null,"優秀施工者国土交通大臣顕彰","重複"]
[null,null,null,null,null,null,null,null,"安全優良職長厚生労働大臣顕彰","重複"]
[null,null,null,null,null,null,null,null,"１級建築施工管理技士","重複"]
[null,null,null,null,null,null,null,null,"卓越した技術者（現代の名工）","重複"]
[null,null,null,null,null,null,null,null,"技能グランプリ（金賞・銀賞・銅賞・敢闘賞）","重複"]
[null,null,null,null,null,null,null,null,"１級ガラス施工管理技士",""]
[null,null,null,null,null,null,null,null,"青年優秀施工者土地・建設産業局長顕彰","重複"]
[null,null,null,null,null,null,null,null,"２級建築施工管理技士","重複"]
[null,null,null,null,null,null,null,null,"職長・安全衛生責任者教育","重複"]
[null,null,null,null,null,null,null,null,"２級ガラス施工技能士",""]
[null,null,null,null,null,null,null,null,"高所作業車運転技能講習","重複"]
[null,null,null,null,null,null,null,null,"足場の組立て等作業主任者",""]
[null,null,null,null,null,null,null,null,"玉掛技能講習","重複"]
[null,null,null,null,null,null,null,null,"登録造園基幹技能者",""]
[null,null,null,null,null,null,null,null,"優秀施工者国土交通大臣顕彰","重複"]
[null,null,null,null,null,null,null,null,"卓越した技術者（現代の名工）","重複"]
[null,null,null,null,null,null,null,null,"安全優良職長厚生労働大臣顕彰","重複"]
[null,null,null,null,null,null,null,null,"１級造園技能士","重複"]
[null,null,null,null,null,null,null,null,"１級造園施工管理技士","重複"]
[null,null,null,null,null,null,null,null,"青年優秀施工者土地・建設産業局長顕彰","重複"]
[null,null,null,null,null,null,null,null,"車両系建設機械（整地・運搬・積込み用及び掘削用）運転技能講習","重複"]
[null,null,null,null,null,null,null,null,"高所作業車運転技能講習","重複"]
[null,null,null,null,null,null,null,null,"不整地運搬車運転技能講習","重複"]
[null,null,null,null,null,null,null,null,"地山の掘削及び土止め支保工作業主任者技能講習","重複"]
[null,null,null,null,null,null,null,null,"職長・安全衛生責任者教育","重複"]
[null,null,null,null,null,null,null,null,"２級造園技能士","重複"]
[null,null,null,null,null,null,null,null,"２級造園施工管理技士","重複"]
[null,null,null,null,null,null,null,null,"小型車両系建設機械（整地・運搬・積込み用及び掘削用）運転技能講習",""]
[null,null,null,null,null,null,null,null,"高所作業車運転技能講習","重複"]
[null,null,null,null,null,null,null,null,"不整地運搬車運転技能講習",{"$f":"IF(COUNTIF($I$3:$I$471,I323)>1,\"重複\",\"\")","v":"重複"}]
[null,null,null,null,null,null,null,null,"移動式クレーン運転特別教育",""]
[null,null,null,null,null,null,null,null,"立木伐木（胸高直径70cm以上、胸高直径20cm以上重心偏・つりきり・かかり木）特別教育",""]
[null,null,null,null,null,null,null,null,"チェーンソーを用いての立木伐木・かかり木処理または造材特別教育"]
[null,null,null,null,null,null,null,null,"ロープ高所作業特別教育",{"$f":"IF(COUNTIF($I$3:$I$471,I327)>1,\"重複\",\"\")","v":"重複"}]
[null,null,null,null,null,null,null,null,"墜落制止用器具を用いて行う作業に関わる特別教育",""]
[null,null,null,null,null,null,null,null,"玉掛技能講習","重複"]
[null,null,null,null,null,null,null,null,"小型移動式クレーン運転技能講習","重複"]
[null,null,null,null,null,null,null,null,"刈払機取扱作業者に対する安全衛生教育",""]
[null,null,null,null,null,null,null,null,"登録エクステリア基幹技能者",""]
[null,null,null,null,null,null,null,null,"優秀施工者国土交通大臣顕彰","重複"]
[null,null,null,null,null,null,null,null,"１級土木施工管理技士","重複"]
[null,null,null,null,null,null,null,null,"１級造園施工管理技士","重複"]
[null,null,null,null,null,null,null,null,"１級ブロック建築技能士",""]
[null,null,null,null,null,null,null,null,"１級石材施工技能士",""]
[null,null,null,null,null,null,null,null,"１級造園技能士","重複"]
[null,null,null,null,null,null,null,null,"１級エクステリアプランナー",""]
[null,null,null,null,null,null,null,null,"職長・安全衛生責任者教育","重複"]
[null,null,null,null,null,null,null,null,"２級土木施工管理技士","重複"]
[null,null,null,null,null,null,null,null,"２級造園施工管理技士","重複"]
[null,null,null,null,null,null,null,null,"２級ブロック建築技能士",""]
[null,null,null,null,null,null,null,null,"２級石材施工技能士",""]
[null,null,null,null,null,null,null,null,"２級造園技能士","重複"]
[null,null,null,null,null,null,null,null,"２級エクステリアプランナー",""]
[null,null,null,null,null,null,null,null,"建築コンクリートブロック工事士",""]
[null,null,null,null,null,null,null,null,"登録ダクト基幹技能者",""]
[null,null,null,null,null,null,null,null,"優秀施工者国土交通大臣顕彰","重複"]
[null,null,null,null,null,null,null,null,"１級管工事施工管理技士","重複"]
[null,null,null,null,null,null,null,null,"１級建築板金技能士（ダクト板金）",""]
[null,null,null,null,null,null,null,null,"２級管工事施工管理技士",""]
[null,null,null,null,null,null,null,null,"職長・安全衛生責任者教育","重複"]
[null,null,null,null,null,null,null,null,"２級建築板金技能士（ダクト板金）",""]
[null,null,null,null,null,null,null,null,"高所作業車運転特別教育","重複"]
[null,null,null,null,null,null,null,null,"高所作業車運転技能講習","重複"]
[null,null,null,null,null,null,null,null,"玉掛技能講習","重複"]
[null,null,null,null,null,null,null,null,"登録グラウト基幹技能者",""]
[null,null,null,null,null,null,null,null,"優秀施工者国土交通大臣顕彰",{"$f":"IF(COUNTIF($I$3:$I$471,I359)>1,\"重複\",\"\")","v":"重複"}]
[null,null,null,null,null,null,null,null,"１級土木施工管理技士","重複"]
[null,null,null,null,null,null,null,null,"２級土木施工管理技士","重複"]
[null,null,null,null,null,null,null,null,"ジェットグラウト技士",""]
[null,null,null,null,null,null,null,null,"青年優秀施工者土地・建設産業局長顕彰","重複"]
[null,null,null,null,null,null,null,null,"職長・安全衛生責任者教育","重複"]
[null,null,null,null,null,null,null,null,"ボーリングマシン運転特別教育",""]
[null,null,null,null,null,null,null,null,"特定化学物質等作業主任者技能講習","重複"]
[null,null,null,null,null,null,null,null,"小型移動式クレーン運転技能講習","重複"]
[null,null,null,null,null,null,null,null,"玉掛け特別教育又は玉掛け技能講習",""]
[null,null,null,null,null,null,null,null,"低圧電気取扱業務特別教育","重複"]
[null,null,null,null,null,null,null,null,"登録冷凍空調基幹技能者",""]
[null,null,null,null,null,null,null,null,"優秀施工者国土交通大臣顕彰","重複"]
[null,null,null,null,null,null,null,null,"１級冷凍空気調和機器施工技能士",""]
[null,null,null,null,null,null,null,null,"職長・安全衛生責任者教育","重複"]
[null,null,null,null,null,null,null,null,"第一種冷媒フロン類取扱技術者","重複"]
[null,null,null,null,null,null,null,null,"２級冷凍空気調和機器施工技能士",""]
[null,null,null,null,null,null,null,null,"ガス溶接技能講習","重複"]
[null,null,null,null,null,null,null,null,"第一種冷媒フロン類取扱技術者","重複"]
[null,null,null,null,null,null,null,null,"第二種冷媒フロン類取扱技術者",""]
[null,null,null,null,null,null,null,null,"登録運動施設基幹技能者",""]
[null,null,null,null,null,null,null,null,"優秀施工者国土交通大臣顕彰","重複"]
[null,null,null,null,null,null,null,null,"運動施設施工技士",""]
[null,null,null,null,null,null,null,null,"青年優秀施工者土地・建設産業局長顕彰","重複"]
[null,null,null,null,null,null,null,null,"職長・安全衛生責任者教育","重複"]
[null,null,null,null,null,null,null,null,"１級土木施工管理技士","重複"]
[null,null,null,null,null,null,null,null,"２級土木施工管理技士","重複"]
[null,null,null,null,null,null,null,null,"１級造園施工管理技士","重複"]
[null,null,null,null,null,null,null,null,"２級造園施工管理技士","重複"]
[null,null,null,null,null,null,null,null,"１級建設機械施工技士","重複"]
[null,null,null,null,null,null,null,null,"２級建設機械施工技士","重複"]
[null,null,null,null,null,null,null,null,"車両系建設機械（整地・運搬・積込み用及び掘削用）運転技能講習","重複"]
[null,null,null,null,null,null,null,null,"ショベルローダー等の運転技能講習",{"$f":"IF(COUNTIF($I$3:$I$471,I391)>1,\"重複\",\"\")","v":""}]
[null,null,null,null,null,null,null,null,"締固め機械（ローラー）の運転特別教育",""]
[null,null,null,null,null,null,null,null,"登録配管基幹技術者",""]
[null,null,null,null,null,null,null,null,"優秀施工者国土交通大臣顕彰","重複"]
[null,null,null,null,null,null,null,null,"１級管工事施工管理技士","重複"]
[null,null,null,null,null,null,null,null,"給水装置工事主任技術者",""]
[null,null,null,null,null,null,null,null,"配水管技能者",""]
[null,null,null,null,null,null,null,null,"職長・安全衛生責任者教育","重複"]
[null,null,null,null,null,null,null,null,"２級配管技能士",""]
[null,null,null,null,null,null,null,null,"高所作業車運転特別教育","重複"]
[null,null,null,null,null,null,null,null,"高所作業車運転技能講習","重複"]
[null,null,null,null,null,null,null,null,"給水装置工事配管技能者",""]
[null,null,null,null,null,null,null,null,"地山の掘削及び土止め支保工作業主任者技能講習","重複"]
[null,null,null,null,null,null,null,null,"石綿作業主任者",""]
[null,null,null,null,null,null,null,null,"登録建築板金基幹技能者",""]
[null,null,null,null,null,null,null,null,"優秀施工者国土交通大臣顕彰","重複"]
[null,null,null,null,null,null,null,null,"１級建築施工管理技士","重複"]
[null,null,null,null,null,null,null,null,"卓越した技術者（現代の名工）","重複"]
[null,null,null,null,null,null,null,null,"１級建築板金技能士",""]
[null,null,null,null,null,null,null,null,"２級建築施工管理技士","重複"]
[null,null,null,null,null,null,null,null,"青年優秀施工者土地・建設産業局長顕彰","重複"]
[null,null,null,null,null,null,null,null,"金属屋根工事技士",""]
[null,null,null,null,null,null,null,null,"職長・安全衛生責任者教育","重複"]
[null,null,null,null,null,null,null,null,"アーク溶接特別教育講習",""]
[null,null,null,null,null,null,null,null,"玉掛け技能講習","重複"]
[null,null,null,null,null,null,null,null,"高所作業車運転技能講習","重複"]
[null,null,null,null,null,null,null,null,"登録標識・路面標示基幹技能者",""]
[null,null,null,null,null,null,null,null,"優秀施工者国土交通大臣顕彰","重複"]
[null,null,null,null,null,null,null,null,"道路標識点検診断士",""]
[null,null,null,null,null,null,null,null,"１級土木施工管理技士","重複"]
[null,null,null,null,null,null,null,null,"路面標示施工技能士（単一等級溶融又は加熱）",""]
[null,null,null,null,null,null,null,null,"２級土木施工管理技士","重複"]
[null,null,null,null,null,null,null,null,"青年優秀施工者土地・建設産業局長顕彰",{"$f":"IF(COUNTIF($I$3:$I$471,I423)>1,\"重複\",\"\")","v":"重複"}]
[null,null,null,null,null,null,null,null,"能力向上教育",""]
[null,null,null,null,null,null,null,null,"玉掛け技能講習","重複"]
[null,null,null,null,null,null,null,null,"小型移動式クレーン運転技能講習","重複"]
[null,null,null,null,null,null,null,null,"高所作業車運転技能講習","重複"]
[null,null,null,null,null,null,null,null,"職長・安全衛生責任者教育","重複"]
[null,null,null,null,null,null,null,null,"玉掛け技能講習","重複"]
[null,null,null,null,null,null,null,null,"小型移動式クレーン運転技能講習","重複"]
[null,null,null,null,null,null,null,null,"高所作業車運転技能講習","重複"]
[null,null,null,null,null,null,null,null,"乙種危険物取扱者","重複"]
[null,null,null,null,null,null,null,null,"フォークリフト運転技能講習","重複"]
[null,null,null,null,null,null,null,null,"登録土工基幹技能者講習",""]
[null,null,null,null,null,null,null,null,"１級建設機械施工技士","重複"]
[null,null,null,null,null,null,null,null,"１級土木施工管理技士","重複"]
[null,null,null,null,null,null,null,null,"優秀施工者国土交通大臣顕彰","重複"]
[null,null,null,null,null,null,null,null,"青年優秀施工者土地・建設産業局長顕彰","重複"]
[null,null,null,null,null,null,null,null,"２級建設機械施工技士","重複"]
[null,null,null,null,null,null,null,null,"職業訓練指導員（建築科・枠組壁建築科・プレハブ建築科）","重複"]
[null,null,null,null,null,null,null,null,"発破技士","重複"]
[null,null,null,null,null,null,null,null,"甲種火薬類取扱保安責任者",""]
[null,null,null,null,null,null,null,null,"乙種火薬類取扱保安責任者",""]
[null,null,null,null,null,null,null,null,"地山の掘削及び土止め支保工作業主任者技能講習","重複"]
[null,null,null,null,null,null,null,null,"地山の掘削作業主任者技能講習（旧）",""]
[null,null,null,null,null,null,null,null,"土止め支保工作業主任者技能講習（旧）",""]
[null,null,null,null,null,null,null,null,"型枠支保工の組立て等作業主任者技能講習","重複"]
[null,null,null,null,null,null,null,null,"足場の組立て等作業主任者技能講習","重複"]
[null,null,null,null,null,null,null,null,"コンクリート破砕機器作業主任者技能講習",""]
[null,null,null,null,null,null,null,null,"はい作業主任者技能講習",""]
[null,null,null,null,null,null,null,null,"車両系建設機械（整地・運搬・積込み用および掘削用）運転技能講習","重複"]
[null,null,null,null,null,null,null,null,"不整地運搬車運転技能講習","重複"]
[null,null,null,null,null,null,null,null,"高所作業車運転技能講習","重複"]
[null,null,null,null,null,null,null,null,"フォークリフト運転技能講習","重複"]
[null,null,null,null,null,null,null,null,"小型移動式クレーン運転技能講習",{"$f":"IF(COUNTIF($I$3:$I$471,I455)>1,\"重複\",\"\")","v":"重複"}]
[null,null,null,null,null,null,null,null,"ガス溶接技能講習","重複"]
[null,null,null,null,null,null,null,null,"職長・安全衛生責任者教育","重複"]
[null,null,null,null,null,null,null,null,"小型車両系建設機械（整地運搬積込機・掘削機・基礎工事機・解体用機械）の運転（機体重量３t未満）特別教育",""]
[null,null,null,null,null,null,null,null,"車両系建設機械（整地・運搬・積込み用および掘削用）運転技能講習","重複"]
[null,null,null,null,null,null,null,null,"基礎工事用機械の運転（非自走式）特別教育",""]
[null,null,null,null,null,null,null,null,"締固め用機械（ローラー）の運転特別教育",""]
[null,null,null,null,null,null,null,null,"基礎工事用機械の作業装置の操作（自走式）特別教育",""]
[null,null,null,null,null,null,null,null,"コンクリート打設用機械の作業装置の操作特別教育","重複"]
[null,null,null,null,null,null,null,null,"不整地運搬車の運転（最大荷重１t未満）特別教育",""]
[null,null,null,null,null,null,null,null,"低圧電気取扱業務特別教育","重複"]
[null,null,null,null,null,null,null,null,"研削といし・自由研削といしの取替等の業務特別教育",""]
[null,null,null,null,null,null,null,null,"足場の組立て等作業従事者特別教育","重複"]
[null,null,null,null,null,null,null,null,"クレーンの運転（つり上げ荷重５t未満およびつり上げ荷重５t以上の跨線テルハ）特別教育",""]
[null,null,null,null,null,null,null,null,"ロープ高所作業特別教育","重複"]
[null,null,null,null,null,null,null,null,"立木伐木（胸高直径７０cm以上、胸高直径２０cm以上重心偏・つりきり・かかり木）特別教育",""]
[null,null,null,null,null,null,null,null,"玉掛け技能講習","重複"]

{"sheet":"入力値","index":2,"n_rows":2,"n_cols":14,"rows_kept":2,"cut":false,"hidden":true,"merged":[]}
[null,null,null,null,null,null,null,null,null,null,null,null,0,0]
[null,null,null,null,null,null,null,null,null,null,null,null,null,0]

{"sheet":"バック","index":3,"n_rows":0,"n_cols":0,"rows_kept":0,"cut":false,"hidden":false,"merged":[[3,2,37,2],[3,3,37,3],[40,0,40,3]]}

{"sheet":"結果反映シート","index":4,"n_rows":56,"n_cols":20,"rows_kept":56,"cut":false,"hidden":false,"merged":[[39,0,39,2],[27,0,27,2],[0,0,1,9],[44,0,44,2],[45,0,45,2],[34,0,34,2],[36,0,36,2],[37,0,37,2],[42,0,42,2],[43,0,43,2],[28,0,28,2],[29,0,29,2],[30,0,30,2],[31,0,31,2],[32,0,32,2],[33,0,33,2],[38,0,38,2],[3,0,4,1],[6,0,7,1],[3,2,4,7],[6,2,7,7],[18,0,18,2],[17,0,17,2],[12,0,12,2],[13,0,13,2],[14,0,14,2],[15,0,15,2],[16,0,16,2],[35,17,36,17],[41,14,44,14],[9,4,9,7],[35,0,35,2],[11,0,11,2],[19,0,19,2],[20,0,20,2],[21,0,21,2],[8,9,9,9],[40,0,40,2],[41,0,41,2],[22,0,22,2],[23,0,23,2],[24,0,24,2],[25,0,25,2],[26,0,26,2]]}
["レベルマスターVer.1.0　能力評価（レベル判定）シミュレーション結果"]
[]
[null,null,null,null,null,null,null,null,null,null,null,"レベル判定に必要なCCUS登録職種"]
["主に所属している法人名",null,null,null,null,null,null,null,null,"就業日数"]
[null,null,null,null,null,null,null,null,null,"430日（2年）未満",null,null,"大分類","中分類",null,"大分類","中分類",null,"大分類","中分類"]
[null,null,null,null,null,null,null,null,null,"職長・班長経験",null,"電気工事","09電工","01電気工","PC","52その他","34PC工","外壁仕上","35左官工","03外壁仕上工"]
["技能者氏名",null,null,null,null,null,null,null,null,"職長：108日（0.5年）未満、職長・班長：108日（0.5年）未満",null,"橋梁","22橋りょう特殊工","01橋りょう特殊工",null,"02普通作業員","01普通作業員",null,null,"02吹付工"]
[null,null,null,null,null,null,null,null,null,"チェックがつけられた職種一覧（中分類）",null,null,"24橋りょう世話役","01橋りょう世話役",null,"24橋りょう世話役","01橋りょう世話役",null,"12塗装工","03吹付塗装工"]
[null,null,null,null,null,null,null,null,null,null,null,null,"（06とび工","01とび工）",null,"25土木一般世話役","01土木一般世話役",null,"38防水工","02塗膜防水工"]
[null,null,null,null,"［レベル］",null,null,null,null,null,null,"造園","04造園工","01造園工",null,"（01特殊作業員","11土工）",null,null,"05シーリング防水工"]
[null,null,null,"*注",1,2,3,4,null,"チェックがつけられた資格等一覧",null,null,null,"02造園修景工",null,"（06とび工","01とび工）",null,null,"06ウレタン防水工"]
["電気工事",null,null,"×","★",null,null,null,null,null,null,null,null,"03公園設備士",null,"（10鉄筋工","01鉄筋工）",null,"46ダクト工","03塗装工（空気調和設備）"]
["橋梁",null,null,"×","★",null,null,null,null,null,null,null,null,"04植栽工",null,"（22橋りょう特殊工","01橋りょう特殊工）",null,"47保温工","07耐火皮膜工"]
["造園",null,null,"×","★",null,null,null,null,null,null,null,null,"05芝張工",null,"（33型わく工","01型わく工）",null,"（12塗装工","01塗装工）"]
["コンクリート圧送",null,null,"×","★",null,null,null,null,null,null,null,null,"06植木職","鉄筋","10鉄筋工","01鉄筋工","ダクト","46ダクト工","01ダクト工"]
["防水施工",null,null,"×","★",null,null,null,null,null,null,"コンクリート圧送","01特殊作業員","03コンクリート圧送工","圧接","10鉄筋工","02鉄筋圧接工","保温保冷","47保温工","01保温工"]
["トンネル",null,null,"×","★",null,null,null,null,null,null,null,"14運転手（特殊）","03コンクリートポンプ運転工","型枠","33型わく工","01型わく工",null,null,"02熱絶縁工"]
["建設塗装",null,null,"×","★",null,null,null,null,null,null,"防水施工","38防水工","01防水工","配管","36配管工","01配管工",null,null,"04防露工"]
["左官",null,null,"×","★",null,null,null,null,null,null,null,null,"02塗膜防水工",null,null,"02配管工（給排水・衛生）",null,null,"05耐火被膜工（湿式）"]
["機械土工",null,null,"×","★",null,null,null,null,null,null,null,null,"03シート防水工",null,null,"03配管工（冷暖房）",null,null,"07耐火皮膜工（塗装）"]
["海上起重",null,null,"×","★",null,null,null,null,null,null,null,null,"04アスファルト防水工",null,null,"04配管工（ガス）","グラウト","01特殊作業員","08ボーリング工"]
["ＰＣ",null,null,"×","★",null,null,null,null,null,null,null,null,"05シーリング防水工",null,null,"05配管工（プラント）",null,null,"10グラウト工"]
["鉄筋",null,null,"×","★",null,null,null,null,null,null,null,null,"06ウレタン防水工",null,null,"06ボイラー設備工",null,null,"13地盤改良工"]
["圧接",null,null,"×","★",null,null,null,null,null,null,"トンネル","19トンネル特殊工","01トンネル工（特殊作業員）",null,null,"07ポンプ設置工",null,"25土木一般世話役","01土木一般世話役"]
["型枠",null,null,"×","★",null,null,null,null,null,null,null,"20トンネル作業員","01トンネル工（普通作業員）",null,null,"08浄化設備工","冷凍空調","36配管工","13冷凍空調設備工"]
["配管",null,null,"×","★",null,null,null,null,null,null,null,"21トンネル世話役","01トンネル工（世話役）",null,null,"09計装工（給排水衛生設備）",null,"49設備機械工","10冷凍空調設備工"]
["とび",null,null,"×","★",null,null,null,null,null,null,"建設塗装","12塗装工","01塗装工",null,null,"10水道施設工","運動施設","52その他","11運動施設工"]
["切断穿孔",null,null,"×","★",null,null,null,null,null,null,null,null,"03吹付塗装工",null,null,"11消防施設工","基礎ぐい工","06とび工","06くい打ち工"]
["内装仕上",null,null,"×","★",null,null,null,null,null,null,null,"23橋りょう塗装工","01橋りょう塗装工",null,null,"12ガス器具取付工",null,"01特殊作業員","01特殊作業員"]
["サッシ・カーテンウォール",null,null,"×","★",null,null,null,null,null,null,null,"35左官工","02吹付工","とび","06とび工","01とび工",null,"02普通作業員","01普通作業員"]
["エクステリア",null,null,"×","★",null,null,null,null,null,null,null,"38防水工","02塗膜防水工","切断穿孔","52その他（施工）","37切断穿孔工",null,null,"02掘削工"]
["建築板金",null,null,"×","★",null,null,null,null,null,null,null,null,"05シーリング防水工","内装仕上","43内装工","01内装工",null,"13溶接工","01溶接工"]
["外壁仕上",null,null,"×","★",null,null,null,null,null,null,null,null,"06ウレタン防水工",null,null,"02内装仕上工",null,"14運転手（特殊）","07くい打機運転工"]
["ダクト",null,null,"×","★",null,null,null,null,null,null,null,"46ダクト工","03塗装工（空気調和設備）",null,null,"04軽鉄工",null,null,"08クレーン運転工"]
["保温保冷",null,null,"×","★",null,null,null,null,null,null,null,"47保温工","07耐火皮膜工",null,null,"06ボード張り","タイル張り","40タイル工","01タイル工"]
["グラウト",null,null,"×","★",null,null,null,null,null,null,null,"（35左官工","03外壁仕上工）",null,null,"07床張り工","道路標識・路面標示","52その他（施工）","05道路標識設置工"]
["冷凍空調",null,null,"×","★",null,null,null,null,null,null,"左官","35左官工","01左官工",null,null,"08壁装（クロス）工",null,null,"06路面標示設置工"]
["運動施設",null,null,"×","★",null,null,null,null,null,null,null,null,"02吹付工",null,null,"11フローリング工","消防施設","36配管工","11消防施設工"]
["基礎ぐい工事",null,null,"×","★",null,null,null,null,null,null,null,null,"03外壁仕上工",null,null,"12二重床工",null,null,"02配管工（給排水・衛生）"]
["タイル張り",null,null,"×","★",null,null,null,null,null,null,null,"08ブロック工","01ブロック工",null,null,"13表具師",null,null,"04配管工（ガス）"]
["道路標識・路面標示",null,null,"×","★",null,null,null,null,null,null,null,"38防水工","01防水工",null,null,"14経師",null,"09電工","08火災報知器据付工"]
["消防施設",null,null,"×","★",null,null,null,null,null,null,null,"40タイル工","01タイル工","サッシ・カーテンウォール","41サッシ工","01サッシ工",null,"53その他（管理）","05現場監督（空調衛生その他設備）"]
["建築大工",null,null,"×","★",null,null,null,null,null,null,null,"42屋根ふき工","01屋根士",null,"45建具工","02シャッター工","建築大工","34大工","01大工"]
["硝子工事",null,null,"×","★",null,null,null,null,null,null,null,"52その他（施工）","10エクステリア工（外構工）",null,null,"03鋼製建具工",null,null,"02宮大工"]
["ＡＬＣ",null,null,"×","★",null,null,null,null,null,null,null,null,"40仕上げ多能工",null,null,"04カーテンウォール工",null,null,"03造作大工"]
["土工",null,null,"×","★",null,null,null,null,null,null,"機械土工","14運転手（特殊）","01運転手（特殊）・建設機械運転工","エクステリア","52その他（施工）","10エクステリア工（外構工）",null,null,"04組立大工"]
["*注：○はＣＣＵＳ登録済職種\n　　　×はＣＣＵＳ非登録職種",null,null,null,null,null,null,null,null,null,null,null,null,"06掘削機械運転工",null,"48建築ブロック工","01建築ブロック工",null,null,"05修繕大工"]
["必要な登録職種については別ページ参照",null,null,null,null,null,null,null,null,null,null,"海上起重","14運転手（特殊）","02しゅんせつ工",null,"08ブロック工","01ブロック工",null,null,"06木工"]
["職種毎のレベル達成度詳細は別ページ参照",null,null,null,null,null,null,null,null,null,null,null,null,"05海上工事機械運転工",null,"06とび工","07土止め工",null,null,"07大工（ツーバイフォー工法）"]
[null,null,null,null,null,null,null,null,null,null,null,null,null,"06掘削機械運転工",null,"07石工","01石工",null,null,"08外壁大工"]
[null,null,null,null,null,null,null,null,null,null,null,null,null,"07くい打機械運転工","建築板金","39板金工","01板金工",null,null,"09大工（丸太組立法）"]
[null,null,null,null,null,null,null,null,null,null,null,null,null,"08クレーン運転工",null,null,null,"硝子工事","44ガラス工","01ガラス工"]
[null,null,null,null,null,null,null,null,null,null,null,null,"26高級船員","01高級船員",null,null,null,null,null,"02ガラスブロック工"]
[null,null,null,null,null,null,null,null,null,null,null,null,"27普通船員","01普通船員",null,null,null,"ALC","48建築ブロック工","03ALC工"]
[null,null,null,null,null,null,null,null,null,null,null,null,null,null,null,null,null,"土工","01特殊作業員","01特殊作業員"]
[null,null,null,null,null,null,null,null,null,null,null,null,null,null,null,null,null,null,null,"11土工"]

{"sheet":"（参考）","index":5,"n_rows":41,"n_cols":4,"rows_kept":41,"cut":false,"hidden":false,"merged":[[3,2,37,2],[3,3,37,3],[40,0,40,3]]}
["（参考）経審とレベル判定の関係"]
[]
["技能者能力評価基準","計上できる建設業の種類","レベル3","レベル４"]
["電気工事","電気、電気通信","「技術職員名簿」に掲載でき、Z1（技術職員評点）2点の資格となる","「技術職員名簿」に掲載でき、Z1（技術職員評点）3点の資格となる"]
["橋梁","とび・土工、鋼構造物"]
["造園","造園"]
["コンクリート圧送","とび・土工"]
["防水施工","防水"]
["トンネル","とび・土工、土木"]
["建設塗装","塗装"]
["左官","左官"]
["機械土工","とび・土工、土木"]
["海上起重","しゅんせつ、土木"]
["ＰＣ","とび・土工、鉄筋、土木"]
["鉄筋","鉄筋"]
["圧接","鉄筋"]
["型枠","大工"]
["配管","管"]
["とび","とび・土工"]
["切断穿孔","とび・土工"]
["内装仕上","内装仕上"]
["サッシ・カーテンウォール","建具"]
["エクステリア","とび・土工、石、タイル・れんが・ブロック"]
["建築板金","屋根、板金"]
["外壁仕上","左官、塗装、防水"]
["ダクト","管"]
["保温保冷","熱絶縁"]
["グラウト","とび・土工"]
["冷凍空調","管"]
["運動施設","とび・土工、造園、舗装、土木"]
["基礎ぐい工事","とび・土工"]
["タイル張り","タイル・れんが・ブロック"]
["道路標識・路面標示","とび・土工、舗装"]
["消防施設","消防施設"]
["建築大工","大工"]
["硝子工事","ガラス"]
["ＡＬＣ","タイル・れんが・ブロック"]
["土工","とび・土工、土木"]
[]
["レベルの向上"]
["３年間に１以上レベルが向上すれば、\nW「その他の審査項目（社会性等）」の「知識及び技術又は技能の向上に関する建設工事に従事する者の取組の状況(W10)」の「レベル向上者数」にカウントされる。\nレベル2であっても「技能者名簿」に記載することとなる。\n"]

{"sheet":"電気工事","index":6,"n_rows":18,"n_cols":4,"rows_kept":18,"cut":false,"hidden":false,"merged":[[17,2,17,3],[13,0,14,0],[13,1,14,1],[13,2,14,2],[4,0,7,0],[4,1,7,1],[4,2,7,2],[8,0,12,0],[8,1,12,1],[8,2,12,2]]}
["★レベル達成度詳細★",null,null,{"$f":"\"技能者氏名：\"&結果反映シート!C7","v":"技能者氏名："}]
[]
["【電気工事】",null,null,"※チェックがつけられた資格には色が付いています。\nレベルアップの参考にして下さい。"]
[null,"就業日数","職長経験","資格"]
["レベル4","2150日（10年）","645日（3年）","●[00001]登録電気工事基幹技能者"]
[null,null,null,"●[91024]優秀施工者国土交通大臣顕彰（電気工）"]
[null,null,null,"●卓越した技能者（現代の名工）"]
[null,null,null,"※レベル2及び3となる資格の保有は必須"]
["レベル3","1075日（5年）","215日（1年）","●[31018]第１種電気工事士"]
[null,null,null,"●[31073]第１種電気工事士試験合格者+[31074]認定電気工事従事者（就業日数1505日（7年）以上）"]
[null,null,null,"●[92024]青年優秀施工者土地・建設産業局長顕彰（電気工）+[31019]第２種電気工事士（就業日数1505日（7年）以上）"]
[null,null,null,"●[31019]第２種電気工事士+[31074]認定電気工事従事者（就業日数2150日（10年）以上）"]
[null,null,null,"※レベル2となる資格の保有は必須"]
["レベル2","645日（3年）","－","●[31073]第１種電気工事士試験合格者"]
[null,null,null,"●[31019]第２種電気工事士"]
[null,null,null,"注）●印のあるものは、同レベル内ではいずれかでＯＫ"]
[]
["（入力値）",{"$f":"結果反映シート!J5","v":"430日（2年）未満"},{"$f":"結果反映シート!J7","v":"職長：108日（0.5年）未満、職長・班長：108日（0.5年）未満"}]

{"sheet":"橋梁","index":7,"n_rows":18,"n_cols":4,"rows_kept":18,"cut":false,"hidden":false,"merged":[[17,2,17,3],[13,0,14,0],[13,1,14,1],[13,2,14,2],[4,0,8,0],[4,1,8,1],[4,2,8,2],[9,0,12,0],[9,1,12,1],[9,2,12,2]]}
["★レベル達成度詳細★",null,null,{"$f":"\"技能者氏名：\"&結果反映シート!C7","v":"技能者氏名："}]
[]
["【橋梁】",null,null,"※チェックがつけられた資格には色が付いています。\nレベルアップの参考にして下さい。"]
[null,"就業日数","職長経験","資格"]
["レベル4","2150日（10年）","645日（3年）","●[00002]登録橋梁基幹技能者"]
[null,null,null,"●[30005]１級土木施工管理技士"]
[null,null,null,"●[91050]優秀施工者国土交通大臣顕彰（橋梁特殊工）"]
[null,null,null,"●[93001]安全優良職長厚生労働大臣顕彰"]
[null,null,null,"※レベル2及び3となる資格の保有は必須"]
["レベル3","1505日（7年）","215日（1年）","●[40013]鋼橋架設等作業主任者　及び　[40011]足場の組立て等作業主任者技能講習"]
[null,null,null,"●[92050]青年優秀施工者土地・建設産業局長顕彰"]
[null,null,null,"＜必須＞[60001,60011]職長・安全衛生責任者教育"]
[null,null,null,"※レベル2となる資格の保有は必須"]
["レベル2","645日（3年）","－","[40040]玉掛け技能講習"]
[null,null,null,"[50052]足場の組立て等作業従事者特別教育　又は　[40011]足場の組立て等作業主任者技能講習"]
[null,null,null,"注）●印のあるものは、同レベル内ではいずれかでＯＫ"]
[]
["（入力値）",{"$f":"結果反映シート!J5","v":"430日（2年）未満"},{"$f":"結果反映シート!J7","v":"職長：108日（0.5年）未満、職長・班長：108日（0.5年）未満"}]

{"sheet":"造園","index":8,"n_rows":36,"n_cols":4,"rows_kept":36,"cut":false,"hidden":false,"merged":[[35,2,35,3],[20,0,32,0],[20,1,32,1],[20,2,32,2],[4,0,8,0],[4,1,8,1],[4,2,8,2],[9,0,19,0],[9,1,19,1],[9,2,19,2]]}
["★レベル達成度詳細★",null,null,{"$f":"\"技能者氏名：\"&結果反映シート!C7","v":"技能者氏名："}]
[]
["【造園】",null,null,"※チェックがつけられた資格には色が付いています。\nレベルアップの参考にして下さい。"]
[null,"就業日数","職長経験","資格"]
["レベル4","2150日（10年）","645日（3年）","●[00003]登録造園基幹技能者"]
[null,null,null,"●[91038]優秀施工者国土交通大臣顕彰（造園工）"]
[null,null,null,"●卓越した技能者（現代の名工）"]
[null,null,null,"●[93001]安全優良職長厚生労働大臣顕彰"]
[null,null,null,"※レベル2及び3となる資格の保有は必須"]
["レベル3","1075日（5年）","215日（1年）","●[10101]１級造園工事作業技能士"]
[null,null,null,"●[30011]１級造園施工管理技士"]
[null,null,null,"●[92038]青年優秀施工者土地・建設産業局長顕彰（造園工）"]
[null,null,null,"●下の資格のうち2つ以上"]
[null,null,null,"[40035]車両系建設機械（整地・運搬・積込み用および掘削用）運転（機体重量３t以上）"]
[null,null,null,"[40039]高所作業者運転（作業床の高さ１０m以上）"]
[null,null,null,"[40038]不整地運搬車運転（最大積載量１t以上）"]
[null,null,null,"[40005]地山の掘削および土止め支保工作業主任者"]
[null,null,null,"＜必須＞[60001]職長教育（労働安全衛生法第６０条）"]
[null,null,null,"＜必須＞[60011]職長・安全衛生責任者教育（労働安全衛生法第１６条及び第６０条）"]
[null,null,null,"※レベル2となる資格の保有は必須"]
["レベル2","645日（3年）","－","●[10102]２級造園工事作業技能士"]
[null,null,null,"●[30012]２級造園施工管理技士"]
[null,null,null,"●下の資格のうち2つ以上"]
[null,null,null,"[50012]小型車両系建設機械（整地運搬積込機・掘削機・基礎工事機・解体用機械）の運転（機体重量３t未満）"]
[null,null,null,"[50020]高所作業者の運転（作業床の高さ１０m未満）"]
[null,null,null,"[50007]不整地運搬車の運転（最大積載量１t未満）"]
[null,null,null,"[50025]移動式クレーンの運転（つり上げ荷重１t未満）"]
[null,null,null,"[50010]立木伐木（胸高直径７０cm以上、胸高直径２０cm以上重心偏・つりきり・かかり木）又は[50011]チェーンソーを用いての立木伐木・かかり木処理または造材"]
[null,null,null,"[50053]ロープ高所作業"]
[null,null,null,"[50058]墜落制止用器具のうちフルハーネス型のものを用いて行う作業（ロープ高所作業を除く）"]
[null,null,null,"[40040]玉掛け（つり上げ荷重１t以上のクレーン用）"]
[null,null,null,"[40031]小型移動式クレーン運転（つり上げ重量５t以上）"]
[null,null,null,"[60014]刈払機取扱作業者に対する安全衛生教育"]
[null,null,null,"注）●印のあるものは、同レベル内ではいずれかでＯＫ"]
[]
["（入力値）",{"$f":"結果反映シート!J5","v":"430日（2年）未満"},{"$f":"結果反映シート!J7","v":"職長：108日（0.5年）未満、職長・班長：108日（0.5年）未満"}]

{"sheet":"コンクリート圧送","index":9,"n_rows":16,"n_cols":4,"rows_kept":16,"cut":false,"hidden":false,"merged":[[15,2,15,3],[11,0,12,0],[11,1,12,1],[11,2,12,2],[4,0,6,0],[4,1,6,1],[4,2,6,2],[7,0,10,0],[7,1,10,1],[7,2,10,2]]}
["★レベル達成度詳細★",null,null,{"$f":"\"技能者氏名：\"&結果反映シート!C7","v":"技能者氏名："}]
[]
["【コンクリート圧送】",null,null,"※チェックがつけられた資格には色が付いています。\nレベルアップの参考にして下さい。"]
[null,"就業日数","職長経験","資格"]
["レベル4","2150日（10年）","645日（3年）","●[00004]登録コンクリート圧送基幹技能者"]
[null,null,null,"●[91004]優秀施工者国土交通大臣顕彰（コンクリート工）"]
[null,null,null,"※レベル2及び3となる資格の保有は必須"]
["レベル3","1505日（7年）","215日（1年）","●[11901]１級コンクリート圧送工事作業技能士"]
[null,null,null,"●[92004]青年優秀施工者土地・建設産業局長顕彰（コンクリート工）"]
[null,null,null,"＜必須＞[60001,60011]職長・安全衛生責任者教育"]
[null,null,null,"※レベル2となる資格の保有は必須"]
["レベル2","645日（3年）","－","●[11901]１級コンクリート圧送工事作業技能士　又は　[11902]２級コンクリート圧送工事作業技能士"]
[null,null,null,"●[50016,50017]コンクリート打設用機械の作業装置の操作（再教育を含む）"]
[null,null,null,"注）●印のあるものは、同レベル内ではいずれかでＯＫ"]
[]
["（入力値）",{"$f":"結果反映シート!J5","v":"430日（2年）未満"},{"$f":"結果反映シート!J7","v":"職長：108日（0.5年）未満、職長・班長：108日（0.5年）未満"}]

{"sheet":"防水施工","index":10,"n_rows":15,"n_cols":4,"rows_kept":15,"cut":false,"hidden":false,"merged":[[14,2,14,3],[9,0,11,0],[9,1,11,1],[9,2,11,2],[4,0,6,0],[4,1,6,1],[4,2,6,2],[7,0,8,0],[7,1,8,1],[7,2,8,2]]}
["★レベル達成度詳細★",null,null,{"$f":"\"技能者氏名：\"&結果反映シート!C7","v":"技能者氏名："}]
[]
["【防水施工】",null,null,"※チェックがつけられた資格には色が付いています。\nレベルアップの参考にして下さい。"]
[null,"就業日数","職長経験","資格"]
["レベル4","2150日（10年）","645日（3年）","●[00005]登録防水基幹技能者"]
[null,null,null,"●[91016]優秀施工者国土交通大臣顕彰（防水工）"]
[null,null,null,"※レベル2及び3となる資格の保有は必須"]
["レベル3","1505日（7年）","215日（1年）","＜必須＞[12001,12011,12021,12031,12041,12051,12061,12071,12081]１級防水施工技能士"]
[null,null,null,"※レベル2となる資格の保有は必須"]
["レベル2","645日（3年）","－","●[12002,12012,12022,12032,12042,12052,12062,12072,12082]２級防水施工技能士"]
[null,null,null,"[40040]玉掛け（つり上げ荷重１t以上のクレーン用）"]
[null,null,null,"[40026]有機溶剤作業主任者"]
[null,null,null,"注）●印のあるものは、同レベル内ではいずれかでＯＫ"]
[]
["（入力値）",{"$f":"結果反映シート!J5","v":"430日（2年）未満"},{"$f":"結果反映シート!J7","v":"職長：108日（0.5年）未満、職長・班長：108日（0.5年）未満"}]

{"sheet":"トンネル","index":11,"n_rows":21,"n_cols":4,"rows_kept":21,"cut":false,"hidden":false,"merged":[[20,2,20,3],[11,0,17,0],[11,1,17,1],[11,2,17,2],[4,0,6,0],[4,1,6,1],[4,2,6,2],[7,0,10,0],[7,1,10,1],[7,2,10,2]]}
["★レベル達成度詳細★",null,null,{"$f":"\"技能者氏名：\"&結果反映シート!C7","v":"技能者氏名："}]
[]
["【トンネル】",null,null,"※チェックがつけられた資格には色が付いています。\nレベルアップの参考にして下さい。"]
[null,"就業日数","職長経験","資格"]
["レベル4","2150日（10年）","645日（3年）","●[00006]登録トンネル基幹技能者"]
[null,null,null,"●[91040]優秀施工者国土交通大臣顕彰（トンネル工）"]
[null,null,null,"※レベル2及び3となる資格の保有は必須"]
["レベル3","1505日（7年）","215日（1年）","＜必須＞[40008]ずい道等の掘削等作業主任者　又は　[40009]ずい道等の覆工作業主任者"]
[null,null,null,"＜必須＞[34003]発破技士　又は　[34001,34002]火薬取扱保安責任者"]
[null,null,null,"＜必須＞[60001,60011]職長・安全衛生責任者教育"]
[null,null,null,"※レベル2となる資格の保有は必須"]
["レベル2","430日（2年）","－","＜必須＞[40035]車両系建設機械（整地・運搬・積込み用および掘削用）運転（機体重量３t以上）"]
[null,null,null,"＜必須＞[40031]小型移動式クレーン運転（つり上げ重量５t以上）"]
[null,null,null,"＜必須＞[40040]玉掛け（つり上げ荷重１t以上のクレーン用）"]
[null,null,null,"＜必須＞[40039]高所作業者運転（作業床の高さ１０m以上）"]
[null,null,null,"＜必須＞[40036]車両系建設機械（解体用）運転（機体重量３t以上）又は　[50016,50017]コンクリート打設用機械の作業装置の操作"]
[null,null,null,"＜必須＞[50042]特定粉じん作業"]
[null,null,null,"＜必須＞[50043]ずい道等の掘削・運搬・覆工等の作業"]
[null,null,null,"注）●印のあるものは、同レベル内ではいずれかでＯＫ"]
[]
["（入力値）",{"$f":"結果反映シート!J5","v":"430日（2年）未満"},{"$f":"結果反映シート!J7","v":"職長：108日（0.5年）未満、職長・班長：108日（0.5年）未満"}]

{"sheet":"建設塗装","index":12,"n_rows":36,"n_cols":4,"rows_kept":36,"cut":false,"hidden":false,"merged":[[35,2,35,3],[17,0,32,0],[17,1,32,1],[17,2,32,2],[4,0,10,0],[4,1,10,1],[4,2,10,2],[11,0,16,0],[11,1,16,1],[11,2,16,2]]}
["★レベル達成度詳細★",null,null,{"$f":"\"技能者氏名：\"&結果反映シート!C7","v":"技能者氏名："}]
[]
["【建設塗装】",null,null,"※チェックがつけられた資格には色が付いています。\nレベルアップの参考にして下さい。"]
[null,"就業日数","職長経験","資格"]
["レベル4","2150日（10年）","645日（3年）","●[00007]登録建設塗装基幹技能者"]
[null,null,null,"●[91015]優秀施工者国土交通大臣顕彰（塗装工）"]
[null,null,null,"●[30007]１級建築施工管理技士"]
[null,null,null,"●[30005]１級土木施工管理技士"]
[null,null,null,"●[30096]建築仕上げ改修施工管理技術者"]
[null,null,null,"●[94057]卓越した技能者（現代の名工）厚労大臣表彰（建築塗装工）"]
[null,null,null,"※レベル2及び3となる資格の保有は必須"]
["レベル3","1505日（7年）","215日（1年）","●[13011]１級建築塗装作業技能士"]
[null,null,null,"●[13031]１級鋼橋塗装作業技能士"]
[null,null,null,"●[30008]２級建築施工管理技士"]
[null,null,null,"●[30006]２級土木施工管理技士"]
[null,null,null,"＜必須＞[60001,60011]職長・安全衛生責任者教育"]
[null,null,null,"※レベル2となる資格の保有は必須"]
["レベル2","645日（3年）","－","●[13012]２級建築塗装作業技能士"]
[null,null,null,"●[13032]２級鋼橋塗装作業技能士"]
[null,null,null,"●[34004]甲種危険物取扱技術者"]
[null,null,null,"●[34005]乙種危険物取扱技術者"]
[null,null,null,"●[40026]有機溶剤作業主任者"]
[null,null,null,"●[40039]高所作業者運転（作業床の高さ１０m以上）"]
[null,null,null,"●[40040]玉掛け（つり上げ荷重１t以上のクレーン用）"]
[null,null,null,"●[40031]小型移動式クレーン運転（つり上げ重量５t以上）"]
[null,null,null,"●[40011]足場の組立て等作業主任者"]
[null,null,null,"●[40028]酸素欠乏危険作業主任者（第１種）"]
[null,null,null,"●[40029]酸素欠乏・硫化水素危険作業主任者（第２種）"]
[null,null,null,"●[40023]特定化学物質等作業主任者（旧）"]
[null,null,null,"●[40024]四アルキル鉛等作業主任者（旧）"]
[null,null,null,"●[40025]鉛作業主任者"]
[null,null,null,"●[40022]特定化学物質および四アルキル鉛等作業主任者"]
[null,null,null,"●[40027]石綿作業主任者"]
[null,null,null,"注）●印のあるものは、同レベル内ではいずれかでＯＫ"]
[]
["（入力値）",{"$f":"結果反映シート!J5","v":"430日（2年）未満"},{"$f":"結果反映シート!J7","v":"職長：108日（0.5年）未満、職長・班長：108日（0.5年）未満"}]

{"sheet":"左官","index":13,"n_rows":36,"n_cols":4,"rows_kept":36,"cut":false,"hidden":false,"merged":[[18,2,18,3],[13,0,15,0],[13,1,15,1],[13,2,15,2],[4,0,9,0],[4,1,9,1],[4,2,9,2],[10,0,12,0],[10,1,12,1],[10,2,12,2]]}
["★レベル達成度詳細★",null,null,{"$f":"\"技能者氏名：\"&結果反映シート!C7","v":"技能者氏名："}]
[]
["【左官】",null,null,"※チェックがつけられた資格には色が付いています。\nレベルアップの参考にして下さい。"]
[null,"就業日数","職長経験","資格"]
["レベル4","2150日（10年）","645日（3年）","●[00008]登録左官基幹技能者"]
[null,null,null,"●[30007]１級建築施工管理技士"]
[null,null,null,"●[91007]優秀施工者国土交通大臣顕彰（左官工）"]
[null,null,null,"●[93001]安全優良職長厚生労働大臣顕彰"]
[null,null,null,"●[94041]卓越した技能者（現代の名工）厚労大臣表彰（左官）"]
[null,null,null,"※レベル2及び3となる資格の保有は必須"]
["レベル3","1075日（5年）","215日（1年）","●[11001]１級左官作業技能士"]
[null,null,null,"●[92007]青年優秀施工者土地・建設産業局長顕彰（左官工）"]
[null,null,null,"※レベル2となる資格の保有は必須"]
["レベル2","645日（3年）","－","●[11002]２級左官作業技能士"]
[null,null,null,"●[50001]研削といし・自由研削といしの取替・取替時試運転　及び　[40011]足場の組立て等作業主任者"]
[null,null,null,"●[50001]研削といし・自由研削といしの取替・取替時試運転　及び　[50052]足場の組立て等作業従事者特別教育"]
[null,null,null,"注）●印のあるものは、同レベル内ではいずれかでＯＫ"]
[]
["（入力値）",{"$f":"結果反映シート!J5","v":"430日（2年）未満"},{"$f":"結果反映シート!J7","v":"職長：108日（0.5年）未満、職長・班長：108日（0.5年）未満"}]
[]
[]
[]
[]
[]
[]
[]
[]
[]
[]
[]
[]
[]
[]
[]
[]
[null,{"$f":"結果反映シート!J5","v":"430日（2年）未満"}]

{"sheet":"機械土工","index":14,"n_rows":16,"n_cols":4,"rows_kept":16,"cut":false,"hidden":false,"merged":[[15,2,15,3],[11,0,12,0],[11,1,12,1],[11,2,12,2],[4,0,7,0],[4,1,7,1],[4,2,7,2],[8,0,10,0],[8,1,10,1],[8,2,10,2]]}
["★レベル達成度詳細★",null,null,{"$f":"\"技能者氏名：\"&結果反映シート!C7","v":"技能者氏名："}]
[]
["【機械土工】",null,null,"※チェックがつけられた資格には色が付いています。\nレベルアップの参考にして下さい。"]
[null,"就業日数","職長経験","資格"]
["レベル4","2150日（10年）","645日（3年）","●[00009]登録機械土工基幹技能者"]
[null,null,null,"●[30005]１級土木施工管理技士"]
[null,null,null,"●[30009]１級建築機械施工技士"]
[null,null,null,"●[91045]優秀施工者国土交通大臣顕彰（建設機械運転工）"]
["レベル3","1075日（5年）","215日（1年）","●[60008]車両系建設機械（整地・運搬・積込用及び掘削用）運転業務従事者安全衛生教育（労働安全衛生法第６０条）"]
[null,null,null,"●[60009]ローラー運転業務従事者安全衛生教育（労働安全衛生法第６０条）"]
[null,null,null,"●[92045]青年優秀施工者土地・建設産業局長顕彰（建設機械運転工）"]
["レベル2","645日（3年）","－","●[40035]車両系建設機械（整地・運搬・積込み用および掘削用）運転（機体重量３t以上）"]
[null,null,null,"●[50015]締固め用機械（ローラー）の運転"]
[null,null,null,"注）●印のあるものは、同レベル内ではいずれかでＯＫ"]
[]
["（入力値）",{"$f":"結果反映シート!J5","v":"430日（2年）未満"},{"$f":"結果反映シート!J7","v":"職長：108日（0.5年）未満、職長・班長：108日（0.5年）未満"}]

{"sheet":"海上起重","index":15,"n_rows":15,"n_cols":4,"rows_kept":15,"cut":false,"hidden":false,"merged":[[14,2,14,3],[10,0,11,0],[10,1,11,1],[10,2,11,2],[4,0,6,0],[4,1,6,1],[4,2,6,2],[7,0,9,0],[7,1,9,1],[7,2,9,2]]}
["★レベル達成度詳細★",null,null,{"$f":"\"技能者氏名：\"&結果反映シート!C7","v":"技能者氏名："}]
[]
["【海上起重】",null,null,"※チェックがつけられた資格には色が付いています。\nレベルアップの参考にして下さい。"]
[null,"就業日数","職長経験","資格"]
["レベル4","2150日（10年）","645日（3年）","●[00010]登録海上起重基幹技能者"]
[null,null,null,"●[91037]優秀施工者国土交通大臣顕彰（しゅんせつ工）"]
[null,null,null,"※レベル2及び3となる資格の保有は必須"]
["レベル3","1075日（5年）","215日（1年）","＜必須＞[30070]海上起重作業管理技士"]
[null,null,null,"＜必須＞[60001,60011]職長・安全衛生責任者教育"]
[null,null,null,"※レベル2となる資格の保有は必須"]
["レベル2","430日（2年）","－","●[40040]玉掛け（つり上げ荷重１t以上のクレーン用）"]
[null,null,null,"●[36024,36025,36026]一級又は二級小型船舶操縦士"]
[null,null,null,"注）●印のあるものは、同レベル内ではいずれかでＯＫ"]
[]
["（入力値）",{"$f":"結果反映シート!J5","v":"430日（2年）未満"},{"$f":"結果反映シート!J7","v":"職長：108日（0.5年）未満、職長・班長：108日（0.5年）未満"}]

{"sheet":"ＰＣ","index":16,"n_rows":19,"n_cols":4,"rows_kept":19,"cut":false,"hidden":false,"merged":[[18,2,18,3],[14,0,15,0],[14,1,15,1],[14,2,15,2],[4,0,6,0],[4,1,6,1],[4,2,6,2],[7,0,13,0],[7,1,13,1],[7,2,13,2]]}
["★レベル達成度詳細★",null,null,{"$f":"\"技能者氏名：\"&結果反映シート!C7","v":"技能者氏名："}]
[]
["【ＰＣ】",null,null,"※チェックがつけられた資格には色が付いています。\nレベルアップの参考にして下さい。"]
[null,"就業日数","職長経験","資格"]
["レベル4","2150日（10年）","645日（3年）","●[00011]登録プレストレスト・コンクリート工事基幹技能者"]
[null,null,null,"●[91004]優秀施工者国土交通大臣顕彰（コンクリート工）"]
[null,null,null,"※レベル2及び3となる資格の保有は必須"]
["レベル3","1505日（7年）","215日（1年）","●[30005,30006]１級又は２級土木施工管理技士"]
[null,null,null,"●[30007,30008]１級又は２級建築施工管理技士"]
[null,null,null,"●[40015]コンクリート橋架設等作業主任者"]
[null,null,null,"●[40011]足場の組立て等作業主任者"]
[null,null,null,"●[40010]型枠支保工の組立て等作業主任者"]
[null,null,null,"＜必須＞[60001,60011]職長・安全衛生責任者教育"]
[null,null,null,"※レベル2となる資格の保有は必須"]
["レベル2","645日（3年）","－","＜必須＞[40040]玉掛け（つり上げ荷重１t以上のクレーン用）"]
[null,null,null,"＜必須＞[50052]足場の組立て等作業従事者特別教育　又は　[40011]足場の組立て等作業主任者"]
[null,null,null,"注）●印のあるものは、同レベル内ではいずれかでＯＫ"]
[]
["（入力値）",{"$f":"結果反映シート!J5","v":"430日（2年）未満"},{"$f":"結果反映シート!J7","v":"職長：108日（0.5年）未満、職長・班長：108日（0.5年）未満"}]

{"sheet":"鉄筋","index":17,"n_rows":16,"n_cols":4,"rows_kept":16,"cut":false,"hidden":false,"merged":[[15,2,15,3],[4,0,9,0],[4,1,9,1],[4,2,9,2],[10,0,11,0],[10,1,11,1],[10,2,11,2]]}
["★レベル達成度詳細★",null,null,{"$f":"\"技能者氏名：\"&結果反映シート!C7","v":"技能者氏名："}]
[]
["【鉄筋】",null,null,"※チェックがつけられた資格には色が付いています。\nレベルアップの参考にして下さい。"]
[null,"就業日数","職長経験","資格"]
["レベル4","2150日（10年）","645日（3年）","●[00012]登録鉄筋基幹技能者"]
[null,null,null,"●[91006]優秀施工者国土交通大臣顕彰（鉄筋工）"]
[null,null,null,"●[93001]安全優良職長厚生労働大臣顕彰"]
[null,null,null,"●[94006]卓越した技能者（現代の名工）厚労大臣表彰（土木鉄筋工）"]
[null,null,null,"●[94007]卓越した技能者（現代の名工）厚労大臣表彰（建築鉄筋工）"]
[null,null,null,"※レベル2及び3となる資格の保有は必須"]
["レベル3","1505日（7年）","645日（3年）","＜必須＞[11801,11811]１級鉄筋施工技能士（組立、または施工図）"]
[null,null,null,"※レベル2となる資格の保有は必須"]
["レベル2","645日（3年）","－","＜必須＞[40040]玉掛け（つり上げ荷重１t以上のクレーン用）"]
[null,null,null,"注）●印のあるものは、同レベル内ではいずれかでＯＫ"]
[]
["（入力値）",{"$f":"結果反映シート!J5","v":"430日（2年）未満"},{"$f":"結果反映シート!J7","v":"職長：108日（0.5年）未満、職長・班長：108日（0.5年）未満"}]

{"sheet":"圧接","index":18,"n_rows":15,"n_cols":4,"rows_kept":15,"cut":false,"hidden":false,"merged":[[14,2,14,3],[10,0,11,0],[10,1,11,1],[10,2,11,2],[4,0,6,0],[4,1,6,1],[4,2,6,2],[7,0,9,0],[7,1,9,1],[7,2,9,2]]}
["★レベル達成度詳細★",null,null,{"$f":"\"技能者氏名：\"&結果反映シート!C7","v":"技能者氏名："}]
[]
["【圧接】",null,null,"※チェックがつけられた資格には色が付いています。\nレベルアップの参考にして下さい。"]
[null,"就業日数","職長経験","資格"]
["レベル4","2150日（10年）","645日（3年）","●[00013]登録圧接基幹技能者"]
[null,null,null,"●[91006]優秀施工者国土交通大臣顕彰（鉄筋工）"]
[null,null,null,"※レベル2及び3となる資格の保有は必須"]
["レベル3","1505日（7年）","215日（1年）","＜必須＞[60001,60011]職長・安全衛生責任者教育"]
[null,null,null,"＜必須＞[50052]足場の組立て等作業従事者特別教育"]
[null,null,null,"※レベル2となる資格の保有は必須"]
["レベル2","645日（3年）","－","＜必須＞[40032]ガス溶接技能講習"]
[null,null,null,"＜必須＞[50001]研削といし・自由研削といしの取替・取替時試運転"]
[null,null,null,"注）●印のあるものは、同レベル内ではいずれかでＯＫ"]
[]
["（入力値）",{"$f":"結果反映シート!J5","v":"430日（2年）未満"},{"$f":"結果反映シート!J7","v":"職長：108日（0.5年）未満、職長・班長：108日（0.5年）未満"}]

{"sheet":"型枠","index":19,"n_rows":17,"n_cols":4,"rows_kept":17,"cut":false,"hidden":false,"merged":[[16,2,16,3],[12,0,13,0],[12,1,13,1],[12,2,13,2],[4,0,6,0],[4,1,6,1],[4,2,6,2],[7,0,11,0],[7,1,11,1],[7,2,11,2]]}
["★レベル達成度詳細★",null,null,{"$f":"\"技能者氏名：\"&結果反映シート!C7","v":"技能者氏名："}]
[]
["【型枠】",null,null,"※チェックがつけられた資格には色が付いています。\nレベルアップの参考にして下さい。"]
[null,"就業日数","職長経験","資格"]
["レベル4","2150日（10年）","645日（3年）","●[00014]登録型枠基幹技能者"]
[null,null,null,"●[91001]優秀施工者国土交通大臣顕彰（大工）"]
[null,null,null,"※レベル2及び3となる資格の保有は必須"]
["レベル3","1505日（7年）","215日（1年）","＜必須＞[11701]１級型枠工事作業技能士"]
[null,null,null,"＜必須＞[40010]型枠支保工の組立て等作業主任者"]
[null,null,null,"＜必須＞[40011]足場の組立て等作業主任者　又は　[50052]足場の組立て等作業従事者特別教育"]
[null,null,null,"＜必須＞[60001,60011]職長・安全衛生責任者教育"]
[null,null,null,"※レベル2となる資格の保有は必須"]
["レベル2","645日（3年）","－","＜必須＞[40040]玉掛け（つり上げ荷重１t以上のクレーン用）"]
[null,null,null,"＜必須＞[60010]丸のこ等取扱い作業従事者教育（労働安全衛生法第６０条）"]
[null,null,null,"注）●印のあるものは、同レベル内ではいずれかでＯＫ"]
[]
["（入力値）",{"$f":"結果反映シート!J5","v":"430日（2年）未満"},{"$f":"結果反映シート!J7","v":"職長：108日（0.5年）未満、職長・班長：108日（0.5年）未満"}]

{"sheet":"配管","index":20,"n_rows":25,"n_cols":4,"rows_kept":25,"cut":false,"hidden":false,"merged":[[24,2,24,3],[16,0,21,0],[16,1,21,1],[16,2,21,2],[4,0,8,0],[4,1,8,1],[4,2,8,2],[9,0,15,0],[9,1,15,1],[9,2,15,2]]}
["★レベル達成度詳細★",null,null,{"$f":"\"技能者氏名：\"&結果反映シート!C7","v":"技能者氏名："}]
[]
["【配管】",null,null,"※チェックがつけられた資格には色が付いています。\nレベルアップの参考にして下さい。"]
[null,"就業日数","職長経験","資格"]
["レベル4","2150日（10年）","645日（3年）","●[00015]登録配管基幹技能者"]
[null,null,null,"●[91025]優秀施工者国土交通大臣顕彰（配管工）"]
[null,null,null,"●[30013]１級管工事施工管理技士"]
[null,null,null,"●[31011]給水装置工事主任技術者"]
[null,null,null,"※レベル2及び3となる資格の保有は必須"]
["レベル3","1505日（7年）","215日（1年）","●[11501]１級建築配管作業技能士"]
[null,null,null,"●[11511]１級プラント配管作業技能士"]
[null,null,null,"●[30014]２級管工事施工管理技士"]
[null,null,null,"●[31013]排水設備工事責任技術者"]
[null,null,null,"●[31075]配水管工技能者"]
[null,null,null,"＜必須＞[60001,60011]職長・安全衛生責任者教育"]
[null,null,null,"※レベル2となる資格の保有は必須"]
["レベル2","645日（3年）","－","●[11502]２級建築配管作業技能士"]
[null,null,null,"●[50020]高所作業者の運転（作業床の高さ１０m未満）"]
[null,null,null,"●[40039]高所作業者運転（作業床の高さ１０m以上）"]
[null,null,null,"●[31012]給水装置工事配管技能者"]
[null,null,null,"●[40005,40006,40007]地山の掘削および土止め支保工作業主任者（旧資格も含む）"]
[null,null,null,"●[40027]石綿作業主任者"]
[null,null,null,"注）●印のあるものは、同レベル内ではいずれかでＯＫ"]
[]
["（入力値）",{"$f":"結果反映シート!J5","v":"430日（2年）未満"},{"$f":"結果反映シート!J7","v":"職長：108日（0.5年）未満、職長・班長：108日（0.5年）未満"}]

{"sheet":"とび","index":21,"n_rows":33,"n_cols":4,"rows_kept":33,"cut":false,"hidden":false,"merged":[[32,2,32,3],[15,0,29,0],[15,1,29,1],[15,2,29,2],[4,0,7,0],[4,1,7,1],[4,2,7,2],[8,0,14,0],[8,1,14,1],[8,2,14,2]]}
["★レベル達成度詳細★",null,null,{"$f":"\"技能者氏名：\"&結果反映シート!C7","v":"技能者氏名："}]
[]
["【とび】",null,null,"※チェックがつけられた資格には色が付いています。\nレベルアップの参考にして下さい。"]
[null,"就業日数","職長経験","資格"]
["レベル4","2580日（12年）","1505日（7年）","●[00016]登録鳶・土工基幹技能者"]
[null,null,null,"●[91002]優秀施工者国土交通大臣顕彰（とび工）"]
[null,null,null,"●[93001]安全優良職長厚生労働大臣顕彰"]
[null,null,null,"※レベル2及び3となる資格の保有は必須"]
["レベル3","1720日（8年）","430日（2年）","●[10901]１級とび作業技能士"]
[null,null,null,"●[30007]１級建築施工管理技士　又は　[30008]２級建築施工管理技士"]
[null,null,null,"●[30005]１級土木施工管理技士　又は　[30006]２級土木施工管理技士"]
[null,null,null,"●下記資格のうち3つ以上"]
[null,null,null,"・[10902]２級とび作業技能士"]
[null,null,null,"・レベル2の12資格"]
[null,null,null,"※レベル2となる資格の保有は必須"]
["レベル2","645日（3年）","－","＜必須＞[40040]玉掛け（つり上げ荷重１t以上のクレーン用）"]
[null,null,null,"＜必須＞[60001,60011]職長・安全衛生責任者教育"]
[null,null,null,"＜必須＞下記の12資格のうち1つ以上"]
[null,null,null,"・[40005]地山の掘削および土止め支保工作業主任者"]
[null,null,null,"・[40010]型枠支保工の組立て等作業主任者"]
[null,null,null,"・[40011]足場の組立て等作業主任者"]
[null,null,null,"・[40012]建築物の鉄骨の組立て等作業主任者"]
[null,null,null,"・[40014]コンクリート造の工作物の解体等作業主任者"]
[null,null,null,"・[40019]木造建築物の組立て等作業主任者"]
[null,null,null,"・[40031]小型移動式クレーン運転（つり上げ重量５t以上）"]
[null,null,null,"・[40032]ガス溶接技能講習"]
[null,null,null,"・[40035]車両系建設機械（整地・運搬・積込み用および掘削用）運転（機体重量３t以上）"]
[null,null,null,"・[40036]車両系建設機械（解体用）運転（機体重量３t以上）"]
[null,null,null,"・[40037]車両系建設機械（基礎工事用）運転（機体重量３t以上）"]
[null,null,null,"・[40039]高所作業者運転（作業床の高さ１０m以上）"]
[null,null,null,"注）●印のあるものは、同レベル内ではいずれかでＯＫ"]
[]
["（入力値）",{"$f":"結果反映シート!J5","v":"430日（2年）未満"},{"$f":"結果反映シート!J7","v":"職長：108日（0.5年）未満、職長・班長：108日（0.5年）未満"}]

{"sheet":"切断穿孔","index":22,"n_rows":14,"n_cols":4,"rows_kept":14,"cut":false,"hidden":false,"merged":[[13,2,13,3],[9,0,10,0],[9,1,10,1],[9,2,10,2],[4,0,6,0],[4,1,6,1],[4,2,6,2],[7,0,8,0],[7,1,8,1],[7,2,8,2]]}
["★レベル達成度詳細★",null,null,{"$f":"\"技能者氏名：\"&結果反映シート!C7","v":"技能者氏名："}]
[]
["【切断穿孔】",null,null,"※チェックがつけられた資格には色が付いています。\nレベルアップの参考にして下さい。"]
[null,"就業日数","職長経験","資格"]
["レベル4","2150日（10年）","645日（3年）","●[00017]登録切断穿孔基幹技能者"]
[null,null,null,"●[91049]優秀施工者国土交通大臣顕彰（切断穿孔工）"]
[null,null,null,"※レベル2及び3となる資格の保有は必須"]
["レベル3","1290日（6年）","215日（1年）","＜必須＞[60001,60011]職長・安全衛生責任者教育"]
[null,null,null,"※レベル2となる資格の保有は必須"]
["レベル2","645日（3年）","－","＜必須＞[33077]コンクリート等切断穿孔技士"]
[]
[null,null,null,"注）●印のあるものは、同レベル内ではいずれかでＯＫ"]
[]
["（入力値）",{"$f":"結果反映シート!J5","v":"430日（2年）未満"},{"$f":"結果反映シート!J7","v":"職長：108日（0.5年）未満、職長・班長：108日（0.5年）未満"}]

{"sheet":"内装仕上","index":23,"n_rows":38,"n_cols":4,"rows_kept":38,"cut":false,"hidden":false,"merged":[[37,2,37,3],[22,0,34,0],[22,1,34,1],[22,2,34,2],[4,0,9,0],[4,1,9,1],[4,2,9,2],[10,0,21,0],[10,1,21,1],[10,2,21,2]]}
["★レベル達成度詳細★",null,null,{"$f":"\"技能者氏名：\"&結果反映シート!C7","v":"技能者氏名："}]
[]
["【内装仕上】",null,null,"※チェックがつけられた資格には色が付いています。\nレベルアップの参考にして下さい。"]
[null,"就業日数","職長経験","資格"]
["レベル4","2150日（10年）","645日（3年）","●[00018]登録内装仕上工事基幹技能者"]
[null,null,null,"●[91017]優秀施工者国土交通大臣顕彰（内装仕上工）"]
[null,null,null,"●[93001]安全優良職長厚生労働大臣顕彰"]
[null,null,null,"●[30007]１級建築施工管理技士"]
[null,null,null,"●卓越した技能者（現代の名工）"]
[null,null,null,"※レベル2及び3となる資格の保有は必須"]
["レベル3","1075日（5年）","645日（3年）","●[12201]１級プラスチック系床仕上げ工事作業技能士"]
[null,null,null,"●[12211]１級カーペット系床仕上げ工事作業技能士"]
[null,null,null,"●[12221]１級木質系床仕上げ工事作業技能士"]
[null,null,null,"●[12231]１級鋼製下地工事作業技能士"]
[null,null,null,"●[12241]１級ボード仕上げ工事作業技能士"]
[null,null,null,"●[12251]１級カーテン工事作業技能士"]
[null,null,null,"●[12261]１級化粧フィルム工事作業技能士"]
[null,null,null,"●[14701]１級表具作業技能士"]
[null,null,null,"●[14711]１級壁装作業技能士"]
[null,null,null,"●[92017]青年優秀施工者土地・建設産業局長顕彰（内装仕上工）"]
[null,null,null,"●[30008]２級建築施工管理技士"]
[null,null,null,"※レベル2となる資格の保有は必須"]
["レベル2","645日（3年）","－","●[12202]２級プラスチック系床仕上げ工事作業技能士"]
[null,null,null,"●[12212]２級カーペット系床仕上げ工事作業技能士"]
[null,null,null,"●[12232]２級鋼製下地工事作業技能士"]
[null,null,null,"●[12242]２級ボード仕上げ工事作業技能士"]
[null,null,null,"●[12252]２級カーテン工事作業技能士"]
[null,null,null,"●[12262]２級化粧フィルム工事作業技能士"]
[null,null,null,"●[14702]２級表具作業技能士"]
[null,null,null,"●[14712]２級壁装作業技能士"]
[null,null,null,"●[50052]足場の組立て等作業従事者特別教育"]
[null,null,null,"●[50001]研削といし・自由研削といしの取替・取替時試運転"]
[null,null,null,"●[60010]丸のこ等取扱い作業従事者教育（労働安全衛生法第６０条）"]
[null,null,null,"●[40040]玉掛け（つり上げ荷重１t以上のクレーン用）"]
[null,null,null,"●[40026]有機溶剤作業主任者"]
[null,null,null,"注）●印のあるものは、同レベル内ではいずれかでＯＫ"]
[]
["（入力値）",{"$f":"結果反映シート!J5","v":"430日（2年）未満"},{"$f":"結果反映シート!J7","v":"職長：108日（0.5年）未満、職長・班長：108日（0.5年）未満"}]

{"sheet":"サッシ","index":24,"n_rows":22,"n_cols":4,"rows_kept":22,"cut":false,"hidden":false,"merged":[[21,2,21,3],[11,0,18,0],[11,1,18,1],[11,2,18,2],[4,0,6,0],[4,1,6,1],[4,2,6,2],[7,0,10,0],[7,1,10,1],[7,2,10,2]]}
["★レベル達成度詳細★",null,null,{"$f":"\"技能者氏名：\"&結果反映シート!C7","v":"技能者氏名："}]
[]
["【サッシ・カーテンウォール】",null,null,"※チェックがつけられた資格には色が付いています。\nレベルアップの参考にして下さい。"]
[null,"就業日数","職長経験","資格"]
["レベル4","2150日（10年）","645日（3年）","●[00019]登録サッシ・カーテンウォール基幹技能者"]
[null,null,null,"●[91018]優秀施工者国土交通大臣顕彰（建具工）"]
[null,null,null,"※レベル2及び3となる資格の保有は必須"]
["レベル3","1505日（7年）","215日（1年）","●[12501]１級ビル用サッシ施工作業技能士"]
[null,null,null,"●[12401]１級金属製カーテンウォール工事作業技能士"]
[null,null,null,"＜必須＞[60001,60011]職長・安全衛生責任者教育"]
[null,null,null,"※レベル2となる資格の保有は必須"]
["レベル2","645日（3年）","－","●[12501]１級ビル用サッシ施工作業技能士　又は　[12502]２級ビル用サッシ施工作業技能士"]
[null,null,null,"●[12401]１級金属製カーテンウォール工事作業技能士　又は　[12402]２級金属製カーテンウォール工事作業技能士"]
[null,null,null,"●下記の全ての資格"]
[null,null,null,"・[60001,60011]職長・安全衛生責任者教育"]
[null,null,null,"・[50055]電気取扱業務（低圧電気取扱業務）"]
[null,null,null,"・[50003]アーク溶接"]
[null,null,null,"・[50052]足場の組立て等作業従事者特別教育　又は　[40011]足場の組立て等作業主任者"]
[null,null,null,"・[50001]研削といし・自由研削といしの取替・取替時試運転"]
[null,null,null,"注）●印のあるものは、同レベル内ではいずれかでＯＫ"]
[]
["（入力値）",{"$f":"結果反映シート!J5","v":"430日（2年）未満"},{"$f":"結果反映シート!J7","v":"職長：108日（0.5年）未満、職長・班長：108日（0.5年）未満"}]

{"sheet":"エクステリア","index":25,"n_rows":29,"n_cols":4,"rows_kept":29,"cut":false,"hidden":false,"merged":[[28,2,28,3],[17,0,25,0],[17,1,25,1],[17,2,25,2],[4,0,6,0],[4,1,6,1],[4,2,6,2],[7,0,16,0],[7,1,16,1],[7,2,16,2]]}
["★レベル達成度詳細★",null,null,{"$f":"\"技能者氏名：\"&結果反映シート!C7","v":"技能者氏名："}]
[]
["【エクステリア】",null,null,"※チェックがつけられた資格には色が付いています。\nレベルアップの参考にして下さい。"]
[null,"就業日数","職長経験","資格"]
["レベル4","2150日（10年）","645日（3年）","●[00020]登録エクステリア基幹技能者"]
[null,null,null,"●[91012]優秀施工者国土交通大臣顕彰（ブロック工）"]
[null,null,null,"※レベル2及び3となる資格の保有は必須"]
["レベル3","1505日（7年）","215日（1年）","●[30005]１級土木施工管理技士"]
[null,null,null,"●[30011]１級造園施工管理技士"]
[null,null,null,"●[11201]１級コンクリートブロック工事作業技能士"]
[null,null,null,"●[10501]１級石材加工作業技能士"]
[null,null,null,"●[10511]１級石張り作業技能士"]
[null,null,null,"●[10521]１級石積み作業技能士"]
[null,null,null,"●[10101]１級造園工事作業技能士"]
[null,null,null,"●[30098]１級エクステリアプランナー"]
[null,null,null,"＜必須＞[60001,60011]職長・安全衛生責任者教育"]
[null,null,null,"※レベル2となる資格の保有は必須"]
["レベル2","645日（3年）","－","●[30006]２級土木施工管理技士"]
[null,null,null,"●[30012]２級造園施工管理技士"]
[null,null,null,"●[11202]２級コンクリートブロック工事作業技能士"]
[null,null,null,"●[10502]２級石材加工作業技能士"]
[null,null,null,"●[10512]２級石張り作業技能士"]
[null,null,null,"●[10522]２級石積み作業技能士"]
[null,null,null,"●[10102]２級造園工事作業技能士"]
[null,null,null,"●[30099]２級エクステリアプランナー"]
[null,null,null,"●[30100]建築コンクリートブロック工事士"]
[null,null,null,"注）●印のあるものは、同レベル内ではいずれかでＯＫ"]
[]
["（入力値）",{"$f":"結果反映シート!J5","v":"430日（2年）未満"},{"$f":"結果反映シート!J7","v":"職長：108日（0.5年）未満、職長・班長：108日（0.5年）未満"}]

{"sheet":"建築板金","index":26,"n_rows":22,"n_cols":4,"rows_kept":22,"cut":false,"hidden":false,"merged":[[21,2,21,3],[16,0,18,0],[16,1,18,1],[16,2,18,2],[4,0,8,0],[4,1,8,1],[4,2,8,2],[9,0,15,0],[9,1,15,1],[9,2,15,2]]}
["★レベル達成度詳細★",null,null,{"$f":"\"技能者氏名：\"&結果反映シート!C7","v":"技能者氏名："}]
[]
["【建築板金】",null,null,"※チェックがつけられた資格には色が付いています。\nレベルアップの参考にして下さい。"]
[null,"就業日数","職長経験","資格"]
["レベル4","2150日（10年）","645日（3年）","●[00021]登録建築板金基幹技能者"]
[null,null,null,"●[91013]優秀施工者国土交通大臣顕彰（板金工）"]
[null,null,null,"●[30007]１級建築施工管理技士"]
[null,null,null,"●[94058]卓越した技能者（現代の名工）厚労大臣表彰（建築板金工）"]
[null,null,null,"※レベル2及び3となる資格の保有は必須"]
["レベル3","1505日（7年）","215日（1年）","●[10301]１級内外装板金作業技能士"]
[null,null,null,"●[10311]１級ダクト板金作業技能士"]
[null,null,null,"●[30008]２級建築施工管理技士"]
[null,null,null,"●[92013]青年優秀施工者土地・建設産業局長顕彰（板金工）"]
[null,null,null,"●[33078]金属屋根工事技士"]
[null,null,null,"＜必須＞[60001,60011]職長・安全衛生責任者教育"]
[null,null,null,"※レベル2となる資格の保有は必須"]
["レベル2","645日（3年）","－","＜必須＞[40039]高所作業者運転（作業床の高さ１０m以上）"]
[null,null,null,"＜必須＞[40040]玉掛け（つり上げ荷重１t以上のクレーン用）"]
[null,null,null,"＜必須＞[50003]アーク溶接"]
[null,null,null,"注）●印のあるものは、同レベル内ではいずれかでＯＫ"]
[]
["（入力値）",{"$f":"結果反映シート!J5","v":"430日（2年）未満"},{"$f":"結果反映シート!J7","v":"職長：108日（0.5年）未満、職長・班長：108日（0.5年）未満"}]

{"sheet":"外壁仕上","index":27,"n_rows":37,"n_cols":4,"rows_kept":37,"cut":false,"hidden":false,"merged":[[36,2,36,3],[20,0,33,0],[20,1,33,1],[20,2,33,2],[4,0,14,0],[4,1,14,1],[4,2,14,2],[15,0,19,0],[15,1,19,1],[15,2,19,2]]}
["★レベル達成度詳細★",null,null,{"$f":"\"技能者氏名：\"&結果反映シート!C7","v":"技能者氏名："}]
[]
["【外壁仕上】",null,null,"※チェックがつけられた資格には色が付いています。\nレベルアップの参考にして下さい。"]
[null,"就業日数","職長経験","資格"]
["レベル4","2150日（10年）","645日（3年）","●[00022]登録外壁仕上基幹技能者"]
[null,null,null,"●[91007]優秀施工者国土交通大臣顕彰（左官工）"]
[null,null,null,"●[91015]優秀施工者国土交通大臣顕彰（塗装工）"]
[null,null,null,"●[91016]優秀施工者国土交通大臣顕彰（防水工）"]
[null,null,null,"●[30007]１級建築施工管理技士"]
[null,null,null,"●[30005]１級土木施工管理技士"]
[null,null,null,"●[30096]建築仕上げ改修施工管理技術者"]
[null,null,null,"●[94041]卓越した技能者（現代の名工）厚労大臣表彰（左官）"]
[null,null,null,"●[94051]卓越した技能者（現代の名工）厚労大臣表彰（建築工事防水等）"]
[null,null,null,"●[94057]卓越した技能者（現代の名工）厚労大臣表彰（建築塗装工）"]
[null,null,null,"※レベル2及び3となる資格の保有は必須"]
["レベル3","1505日（7年）","215日（1年）","●[33091]外壁仕上一級技能者"]
[null,null,null,"●[30008]２級建築施工管理技士"]
[null,null,null,"●[30006]２級土木施工管理技士"]
[null,null,null,"＜必須＞[60001,60011]職長・安全衛生責任者教育"]
[null,null,null,"※レベル2となる資格の保有は必須"]
["レベル2","645日（3年）","－","●[34004]甲種危険物取扱技術者"]
[null,null,null,"●[34005]乙種危険物取扱技術者"]
[null,null,null,"●[40011]足場の組立て等作業主任者"]
[null,null,null,"●[40022]特定化学物質および四アルキル鉛等作業主任者"]
[null,null,null,"●[40023]特定化学物質等作業主任者（旧）"]
[null,null,null,"●[40024]四アルキル鉛等作業主任者（旧）"]
[null,null,null,"●[40025]鉛作業主任者"]
[null,null,null,"●[40026]有機溶剤作業主任者"]
[null,null,null,"●[40027]石綿作業主任者"]
[null,null,null,"●[40028]酸素欠乏危険作業主任者（第１種）"]
[null,null,null,"●[40029]酸素欠乏・硫化水素危険作業主任者（第２種）"]
[null,null,null,"●[40031]小型移動式クレーン運転（つり上げ重量５t以上）"]
[null,null,null,"●[40039]高所作業者運転（作業床の高さ１０m以上）"]
[null,null,null,"●[40040]玉掛け（つり上げ荷重１t以上のクレーン用）"]
[null,null,null,"注）●印のあるものは、同レベル内ではいずれかでＯＫ"]
[]
["（入力値）",{"$f":"結果反映シート!J5","v":"430日（2年）未満"},{"$f":"結果反映シート!J7","v":"職長：108日（0.5年）未満、職長・班長：108日（0.5年）未満"}]

{"sheet":"ダクト","index":28,"n_rows":19,"n_cols":4,"rows_kept":19,"cut":false,"hidden":false,"merged":[[18,2,18,3],[12,0,15,0],[12,1,15,1],[12,2,15,2],[4,0,7,0],[4,1,7,1],[4,2,7,2],[8,0,11,0],[8,1,11,1],[8,2,11,2]]}
["★レベル達成度詳細★",null,null,{"$f":"\"技能者氏名：\"&結果反映シート!C7","v":"技能者氏名："}]
[]
["【ダクト】",null,null,"※チェックがつけられた資格には色が付いています。\nレベルアップの参考にして下さい。"]
[null,"就業日数","職長経験","資格"]
["レベル4","2150日（10年）","645日（3年）","●[00023]登録ダクト基幹技能者"]
[null,null,null,"●[91013]優秀施工者国土交通大臣顕彰（板金工）"]
[null,null,null,"●[30013]１級管工事施工管理技士"]
[null,null,null,"※レベル2及び3となる資格の保有は必須"]
["レベル3","1505日（7年）","215日（1年）","●[10311]１級ダクト板金作業技能士"]
[null,null,null,"●[30014]２級管工事施工管理技士"]
[null,null,null,"＜必須＞[60001,60011]職長・安全衛生責任者教育"]
[null,null,null,"※レベル2となる資格の保有は必須"]
["レベル2","645日（3年）","－","●[10312]２級ダクト板金作業技能士"]
[null,null,null,"●[50020]高所作業者の運転（作業床の高さ１０m未満）　又は　[40039]高所作業者運転（作業床の高さ１０m以上）"]
[null,null,null,"●[50052]足場の組立て等作業従事者特別教育"]
[null,null,null,"●[40040]玉掛け（つり上げ荷重１t以上のクレーン用）"]
[null,null,null,"注）●印のあるものは、同レベル内ではいずれかでＯＫ"]
[]
["（入力値）",{"$f":"結果反映シート!J5","v":"430日（2年）未満"},{"$f":"結果反映シート!J7","v":"職長：108日（0.5年）未満、職長・班長：108日（0.5年）未満"}]

{"sheet":"保温保冷","index":29,"n_rows":22,"n_cols":4,"rows_kept":22,"cut":false,"hidden":false,"merged":[[21,2,21,3],[10,0,18,0],[10,1,18,1],[10,2,18,2],[4,0,6,0],[4,1,6,1],[4,2,6,2],[7,0,9,0],[7,1,9,1],[7,2,9,2]]}
["★レベル達成度詳細★",null,null,{"$f":"\"技能者氏名：\"&結果反映シート!C7","v":"技能者氏名："}]
[]
["【保温保冷】",null,null,"※チェックがつけられた資格には色が付いています。\nレベルアップの参考にして下さい。"]
[null,"就業日数","職長経験","資格"]
["レベル4","2150日（10年）","645日（3年）","●[00024]登録保温保冷基幹技能者"]
[null,null,null,"●[91027]優秀施工者国土交通大臣顕彰（熱絶縁工）"]
[null,null,null,"※レベル2及び3となる資格の保有は必須"]
["レベル3","1505日（7年）","215日（1年）","＜必須＞[12301]１級保温保冷工事作業技能士"]
[null,null,null,"＜必須＞[60001,60011]職長・安全衛生責任者教育"]
[null,null,null,"※レベル2となる資格の保有は必須"]
["レベル2","645日（3年）","－","●[12302]２級保温保冷工事作業技能士"]
[null,null,null,"●下記資格のうち3つ以上"]
[null,null,null,"・[40011]足場の組立て等作業主任者　又は　[50052]足場の組立て等作業従事者特別教育"]
[null,null,null,"・[40039]高所作業者運転（作業床の高さ１０m以上）　又は　[50020]高所作業者の運転（作業床の高さ１０m未満）"]
[null,null,null,"・[40040]玉掛け（つり上げ荷重１t以上のクレーン用）　又は　[50028]玉掛の業務（つり上げ荷重１t未満のクレーン等）"]
[null,null,null,"・[50055]電気取扱業務（低圧電気取扱業務）"]
[null,null,null,"・[40028]酸素欠乏危険作業主任者（第１種）又は　[40029]酸素欠乏・硫化水素危険作業主任者（第２種）　又は　[50037]酸素欠乏危険作業"]
[null,null,null,"・[40027]石綿作業主任者　又は　[50050]石綿等が使用されている建築物等の解体等の作業、封じ込めまたは囲い込みの作業"]
[null,null,null,"・[40022]特定化学物質および四アルキル鉛等作業主任者　又は　[40023]特定化学物質等作業主任者（旧）"]
[null,null,null,"注）●印のあるものは、同レベル内ではいずれかでＯＫ"]
[]
["（入力値）",{"$f":"結果反映シート!J5","v":"430日（2年）未満"},{"$f":"結果反映シート!J7","v":"職長：108日（0.5年）未満、職長・班長：108日（0.5年）未満"}]

{"sheet":"グラウト","index":30,"n_rows":23,"n_cols":4,"rows_kept":23,"cut":false,"hidden":false,"merged":[[22,2,22,3],[15,0,19,0],[15,1,19,1],[15,2,19,2],[4,0,7,0],[4,1,7,1],[4,2,7,2],[8,0,14,0],[8,1,14,1],[8,2,14,2]]}
["★レベル達成度詳細★",null,null,{"$f":"\"技能者氏名：\"&結果反映シート!C7","v":"技能者氏名："}]
[]
["【グラウト】",null,null,"※チェックがつけられた資格には色が付いています。\nレベルアップの参考にして下さい。"]
[null,"就業日数","職長経験","資格"]
["レベル4","2150日（10年）","645日（3年）","●[00025]登録グラウト基幹技能者"]
[null,null,null,"●[91034]優秀施工者国土交通大臣顕彰（ボーリング工）"]
[null,null,null,"●[91035]優秀施工者国土交通大臣顕彰（注入工）"]
[null,null,null,"※レベル2及び3となる資格の保有は必須"]
["レベル3","1505日（7年）","215日（1年）","●[30005]１級土木施工管理技士"]
[null,null,null,"●[30006]２級土木施工管理技士"]
[null,null,null,"●[33079]ジェットグラウト技士"]
[null,null,null,"●[92034]青年優秀施工者土地・建設産業局長顕彰（ボーリング工）"]
[null,null,null,"●[92035]青年優秀施工者土地・建設産業局長顕彰（注入工）"]
[null,null,null,"＜必須＞[60001,60011]職長・安全衛生責任者教育"]
[null,null,null,"※レベル2となる資格の保有は必須"]
["レベル2","645日（3年）","－","＜必須＞[50018]ボーリングマシンの運転"]
[null,null,null,"●[40023]特定化学物質等作業主任者（旧）"]
[null,null,null,"●[40031]小型移動式クレーン運転（つり上げ重量５t以上）"]
[null,null,null,"●[40040]玉掛け（つり上げ荷重１t以上のクレーン用）"]
[null,null,null,"●[50055]電気取扱業務（低圧電気取扱業務）"]
[null,null,null,"注）●印のあるものは、同レベル内ではいずれかでＯＫ"]
[]
["（入力値）",{"$f":"結果反映シート!J5","v":"430日（2年）未満"},{"$f":"結果反映シート!J7","v":"職長：108日（0.5年）未満、職長・班長：108日（0.5年）未満"}]

{"sheet":"冷凍空調","index":31,"n_rows":18,"n_cols":4,"rows_kept":18,"cut":false,"hidden":false,"merged":[[17,2,17,3],[11,0,14,0],[11,1,14,1],[11,2,14,2],[4,0,6,0],[4,1,6,1],[4,2,6,2],[7,0,10,0],[7,1,10,1],[7,2,10,2]]}
["★レベル達成度詳細★",null,null,{"$f":"\"技能者氏名：\"&結果反映シート!C7","v":"技能者氏名："}]
[]
["【冷凍空調】",null,null,"※チェックがつけられた資格には色が付いています。\nレベルアップの参考にして下さい。"]
[null,"就業日数","職長経験","資格"]
["レベル4","2150日（10年）","645日（3年）","●[00026]登録冷凍空調基幹技能者"]
[null,null,null,"●[91025]優秀施工者国土交通大臣顕彰（配管工）"]
[null,null,null,"※レベル2及び3となる資格の保有は必須"]
["レベル3","1505日（7年）","215日（1年）","＜必須＞[10401]１級冷凍空気調和機器施工作業技能士"]
[null,null,null,"＜必須＞[60001,60011]職長・安全衛生責任者教育"]
[null,null,null,"＜必須＞[31045]第一種冷媒フロン類取扱技術者"]
[null,null,null,"※レベル2となる資格の保有は必須"]
["レベル2","645日（3年）","－","●[10402]２級冷凍空気調和機器施工作業技能士"]
[null,null,null,"●[40032]ガス溶接技能講習"]
[null,null,null,"●[31045]第一種冷媒フロン類取扱技術者"]
[null,null,null,"●[31046]第二種冷媒フロン類取扱技術者"]
[null,null,null,"注）●印のあるものは、同レベル内ではいずれかでＯＫ"]
[]
["（入力値）",{"$f":"結果反映シート!J5","v":"430日（2年）未満"},{"$f":"結果反映シート!J7","v":"職長：108日（0.5年）未満、職長・班長：108日（0.5年）未満"}]

{"sheet":"運動施設","index":32,"n_rows":24,"n_cols":4,"rows_kept":24,"cut":false,"hidden":false,"merged":[[23,2,23,3],[15,0,20,0],[15,1,20,1],[15,2,20,2],[4,0,8,0],[4,1,8,1],[4,2,8,2],[9,0,14,0],[9,1,14,1],[9,2,14,2]]}
["★レベル達成度詳細★",null,null,{"$f":"\"技能者氏名：\"&結果反映シート!C7","v":"技能者氏名："}]
[]
["【運動施設】",null,null,"※チェックがつけられた資格には色が付いています。\nレベルアップの参考にして下さい。"]
[null,"就業日数","職長経験","資格"]
["レベル4","2150日（10年）","645日（3年）","●[00027]登録運動施設基幹技能者"]
[null,null,null,"●[91003]優秀施工者国土交通大臣顕彰（土工）"]
[null,null,null,"●[91036]優秀施工者国土交通大臣顕彰（舗装工）"]
[null,null,null,"●[91038]優秀施工者国土交通大臣顕彰（造園工）"]
[null,null,null,"※レベル2及び3となる資格の保有は必須"]
["レベル3","1505日（7年）","215日（1年）","●[33095]運動施設施工技士"]
[null,null,null,"●[92003]青年優秀施工者土地・建設産業局長顕彰（土工）"]
[null,null,null,"●[92036]青年優秀施工者土地・建設産業局長顕彰（塗装工）"]
[null,null,null,"●[92038]青年優秀施工者土地・建設産業局長顕彰（造園工）"]
[null,null,null,"＜必須＞[60001,60011]職長・安全衛生責任者教育"]
[null,null,null,"※レベル2となる資格の保有は必須"]
["レベル2","645日（3年）","－","●[30005]１級土木施工管理技士　又は　[30006]２級土木施工管理技士"]
[null,null,null,"●[30011]１級造園施工管理技士　又は　[30012]２級造園施工管理技士"]
[null,null,null,"●[30009]１級建築機械施工技士　又は　[30010]２級建設機械施工技士"]
[null,null,null,"●[40034]ショベルローダー等運転（最大荷重１t以上）"]
[null,null,null,"●[40035]車両系建設機械（整地・運搬・積込み用および掘削用）運転（機体重量３t以上）"]
[null,null,null,"●[50015]締固め用機械（ローラー）の運転"]
[null,null,null,"注）●印のあるものは、同レベル内ではいずれかでＯＫ"]
[]
["（入力値）",{"$f":"結果反映シート!J5","v":"430日（2年）未満"},{"$f":"結果反映シート!J7","v":"職長：108日（0.5年）未満、職長・班長：108日（0.5年）未満"}]

{"sheet":"基礎くい工事","index":33,"n_rows":33,"n_cols":4,"rows_kept":33,"cut":false,"hidden":false,"merged":[[32,2,32,3],[22,0,29,0],[22,1,29,1],[22,2,29,2],[4,0,10,0],[4,1,10,1],[4,2,10,2],[11,0,21,0],[11,1,21,1],[11,2,21,2]]}
["★レベル達成度詳細★",null,null,{"$f":"\"技能者氏名：\"&結果反映シート!C7","v":"技能者氏名："}]
[]
["【基礎ぐい工事】",null,null,"※チェックがつけられた資格には色が付いています。\nレベルアップの参考にして下さい。"]
[null,"就業日数","職長経験","資格"]
["レベル4","2150日（10年）","645日（3年）","●[00028]登録基礎工基幹技能者"]
[null,null,null,"●[30005]１級土木施工管理技士"]
[null,null,null,"●[30007]１級建築施工管理技士"]
[null,null,null,"●[30009]１級建築機械施工技士"]
[null,null,null,"●[91002]優秀施工者国土交通大臣顕彰（とび工）"]
[null,null,null,"●[91045]優秀施工者国土交通大臣顕彰（建設機械運転工）"]
[null,null,null,"※レベル2及び3となる資格の保有は必須"]
["レベル3","1505日（7年）","215日（1年）","●[33067]基礎施工士"]
[null,null,null,"●[30006]２級土木施工管理技士"]
[null,null,null,"●[30008]２級建築施工管理技士"]
[null,null,null,"●[30010]２級建設機械施工技士"]
[null,null,null,"●[60013]車両系建設機械（基礎工事用）運転業務従事者安全衛生教育（労働安全衛生法第６０条）"]
[null,null,null,"●[60008]車両系建設機械（整地・運搬・積込用及び掘削用）運転業務従事者安全衛生教育（労働安全衛生法第６０条）"]
[null,null,null,"●[60007]移動式クレーン運転士安全衛生教育（労働安全衛生法第６０条）"]
[null,null,null,"●[92002]青年優秀施工者土地・建設産業局長顕彰（とび工）"]
[null,null,null,"●[92045]青年優秀施工者土地・建設産業局長顕彰（建設機械運転工）"]
[null,null,null,"＜必須＞[60001,60011]職長・安全衛生責任者教育"]
[null,null,null,"※レベル2となる資格の保有は必須"]
["レベル2","645日（3年）","－","●[40037]車両系建設機械（基礎工事用）運転（機体重量３t以上）"]
[null,null,null,"●[40035]車両系建設機械（整地・運搬・積込み用および掘削用）運転（機体重量３t以上）"]
[null,null,null,"●[36022]移動式クレーン運転士"]
[null,null,null,"●[50012]小型車両系建設機械（整地運搬積込機・掘削機・基礎工事機・解体用機械）の運転（機体重量３t未満）"]
[null,null,null,"●[40031]小型移動式クレーン運転（つり上げ重量５t以上）"]
[null,null,null,"●[40040]玉掛け（つり上げ荷重１t以上のクレーン用）"]
[null,null,null,"●[30097]基礎杭溶接管理技術者"]
[null,null,null,"●[33092]基礎杭溶接技能者"]
[null,null,null,"注）●印のあるものは、同レベル内ではいずれかでＯＫ"]
[]
["（入力値）",{"$f":"結果反映シート!J5","v":"430日（2年）未満"},{"$f":"結果反映シート!J7","v":"職長：108日（0.5年）未満、職長・班長：108日（0.5年）未満"}]

{"sheet":"タイル張り","index":34,"n_rows":15,"n_cols":4,"rows_kept":15,"cut":false,"hidden":false,"merged":[[14,2,14,3],[10,0,11,0],[10,1,11,1],[10,2,11,2],[4,0,6,0],[4,1,6,1],[4,2,6,2],[7,0,9,0],[7,1,9,1],[7,2,9,2]]}
["★レベル達成度詳細★",null,null,{"$f":"\"技能者氏名：\"&結果反映シート!C7","v":"技能者氏名："}]
[]
["【タイル張り】",null,null,"※チェックがつけられた資格には色が付いています。\nレベルアップの参考にして下さい。"]
[null,"就業日数","職長経験","資格"]
["レベル4","2580日（12年）","645日（3年）","●[00029]登録タイル張り基幹技能者"]
[null,null,null,"●[91010]優秀施工者国土交通大臣顕彰（タイル工）"]
[null,null,null,"※レベル2及び3となる資格の保有は必須"]
["レベル3","2105日（10年）","645日（3年）","＜必須＞[11401]１級タイル張り作業技能士"]
[null,null,null,"＜必須＞[60001,60011]職長・安全衛生責任者教育"]
[null,null,null,"※レベル2となる資格の保有は必須"]
["レベル2","1075日（5年）","－","＜必須＞[50001]研削といし・自由研削といしの取替・取替時試運転"]
[null,null,null,"＜必須＞[50052]足場の組立て等作業従事者特別教育"]
[null,null,null,"注）●印のあるものは、同レベル内ではいずれかでＯＫ"]
[]
["（入力値）",{"$f":"結果反映シート!J5","v":"430日（2年）未満"},{"$f":"結果反映シート!J7","v":"職長：108日（0.5年）未満、職長・班長：108日（0.5年）未満"}]

{"sheet":"道路標識","index":35,"n_rows":28,"n_cols":4,"rows_kept":28,"cut":false,"hidden":false,"merged":[[27,2,27,3],[20,0,24,0],[20,1,24,1],[20,2,24,2],[4,0,8,0],[4,1,8,1],[4,2,8,2],[9,0,19,0],[9,1,19,1],[9,2,19,2]]}
["★レベル達成度詳細★",null,null,{"$f":"\"技能者氏名：\"&結果反映シート!C7","v":"技能者氏名："}]
[]
["【道路標識・路面標示】",null,null,"※チェックがつけられた資格には色が付いています。\nレベルアップの参考にして下さい。"]
[null,"就業日数","職長経験","資格"]
["レベル4","2150日（10年）","645日（3年）","●[00030]登録標識・路面標示基幹技能者"]
[null,null,null,"●[91020]優秀施工者国土交通大臣顕彰（道路標識設置工）"]
[null,null,null,"●[30094]道路標識点検診断士"]
[null,null,null,"●[30005]１級土木施工管理技士"]
[null,null,null,"※レベル2及び3となる資格の保有は必須"]
["レベル3","1505日（7年）","215日（1年）","●[13101]単一等級溶融ペイントハンドマーカー工事作業技能士"]
[null,null,null,"●[13111]単一等級加熱ペイントマシンマーカー工事作業技能士"]
[null,null,null,"●[30006]２級土木施工管理技士"]
[null,null,null,"●[92020]青年優秀施工者土地・建設産業局長顕彰（道路標識設置工）"]
[null,null,null,"●[60012]能力向上教育（労働安全衛生法第１９条）"]
[null,null,null,"●下の全ての資格"]
[null,null,null,"・[40040]玉掛け（つり上げ荷重１t以上のクレーン用）"]
[null,null,null,"・[40031]小型移動式クレーン運転（つり上げ重量５t以上）"]
[null,null,null,"・[40039]高所作業者運転（作業床の高さ１０m以上）"]
[null,null,null,"＜必須＞[60001,60011]職長・安全衛生責任者教育"]
[null,null,null,"※レベル2となる資格の保有は必須"]
["レベル2","645日（3年）","－","●[40040]玉掛け（つり上げ荷重１t以上のクレーン用）"]
[null,null,null,"●[40031]小型移動式クレーン運転（つり上げ重量５t以上）"]
[null,null,null,"●[40039]高所作業者運転（作業床の高さ１０m以上）"]
[null,null,null,"●[34005]乙種危険物取扱技術者"]
[null,null,null,"●[40033]フォークリフト運転（最大荷重１t以上）"]
[null,null,null,"注）●印のあるものは、同レベル内ではいずれかでＯＫ"]
[]
["（入力値）",{"$f":"結果反映シート!J5","v":"430日（2年）未満"},{"$f":"結果反映シート!J7","v":"職長：108日（0.5年）未満、職長・班長：108日（0.5年）未満"}]

{"sheet":"消防施設","index":36,"n_rows":33,"n_cols":4,"rows_kept":33,"cut":false,"hidden":false,"merged":[[32,2,32,3],[26,0,29,0],[26,1,29,1],[26,2,29,2],[4,0,6,0],[4,1,6,1],[4,2,6,2],[7,0,25,0],[7,1,25,1],[7,2,25,2]]}
["★レベル達成度詳細★",null,null,{"$f":"\"技能者氏名：\"&結果反映シート!C7","v":"技能者氏名："}]
[]
["【消防施設】",null,null,"※チェックがつけられた資格には色が付いています。\nレベルアップの参考にして下さい。"]
[null,"就業日数","職長経験","資格"]
["レベル4","2150日（10年）","645日（3年）","●[00031]登録消火設備基幹技能者"]
[null,null,null,"●[91031]優秀施工者国土交通大臣顕彰（消防施設工）"]
[null,null,null,"※レベル2及び3となる資格の保有は必須"]
["レベル3","1505日（7年）","215日（1年）","●[31058]消防設備士甲種特類"]
[null,null,null,"●[31002]消防設備士甲種第１類"]
[null,null,null,"●[31003]消防設備士甲種第２類"]
[null,null,null,"●[31004]消防設備士甲種第３類"]
[null,null,null,"●[31005]消防設備士甲種第４類"]
[null,null,null,"●[31006]消防設備士甲種第５類"]
[null,null,null,"●[31059]消防設備士乙種第１類"]
[null,null,null,"●[31060]消防設備士乙種第２類"]
[null,null,null,"●[31061]消防設備士乙種第３類"]
[null,null,null,"●[31062]消防設備士乙種第４類"]
[null,null,null,"●[31063]消防設備士乙種第５類"]
[null,null,null,"●[31071]消防設備士乙種第６類"]
[null,null,null,"●[31072]消防設備士乙種第７類"]
[null,null,null,"●[31009]第１種消防設備点検資格者"]
[null,null,null,"●[31010]第２種消防設備点検資格者"]
[null,null,null,"●[92031]青年優秀施工者土地・建設産業局長顕彰（消防施設工）"]
[null,null,null,"●[40039]高所作業者運転（作業床の高さ１０m以上）　及び　[40028]酸素欠乏危険作業主任者（第１種）"]
[null,null,null,"＜必須＞[60001,60011]職長・安全衛生責任者教育"]
[null,null,null,"※レベル2となる資格の保有は必須"]
["レベル2","645日（3年）","－","●[50020]高所作業者の運転（作業床の高さ１０m未満）"]
[null,null,null,"●[50037]酸素欠乏危険作業"]
[null,null,null,"●[50055]電気取扱業務（低圧電気取扱業務）"]
[null,null,null,"●[33041]あと施工アンカー第２種施工士"]
[null,null,null,"注）●印のあるものは、同レベル内ではいずれかでＯＫ"]
[]
["（入力値）",{"$f":"結果反映シート!J5","v":"430日（2年）未満"},{"$f":"結果反映シート!J7","v":"職長：108日（0.5年）未満、職長・班長：108日（0.5年）未満"}]

{"sheet":"建築大工","index":37,"n_rows":33,"n_cols":4,"rows_kept":33,"cut":false,"hidden":false,"merged":[[32,2,32,3],[28,0,29,0],[28,1,29,1],[28,2,29,2],[4,0,13,0],[4,1,13,1],[4,2,13,2],[14,0,27,0],[14,1,27,1],[14,2,27,2]]}
["★レベル達成度詳細★",null,null,{"$f":"\"技能者氏名：\"&結果反映シート!C7","v":"技能者氏名："}]
[]
["【建築大工】",null,null,"※チェックがつけられた資格には色が付いています。\nレベルアップの参考にして下さい。"]
[null,"就業日数","職長経験","資格"]
["レベル4","2150日（10年）","645日（3年）","●[00032]登録建築大工基幹技能者"]
[null,null,null,"●[91001]優秀施工者国土交通大臣顕彰（大工）"]
[null,null,null,"●[93001]安全優良職長厚生労働大臣顕彰"]
[null,null,null,"●[94001]卓越した技能者（現代の名工）厚労大臣表彰（建築大工）"]
[null,null,null,"●[94002]卓越した技能者（現代の名工）厚労大臣表彰（宮大工）"]
[null,null,null,"●[95101]技能グランプリ金賞（第１位）建築大工"]
[null,null,null,"●[95102]技能グランプリ銀賞（第２位）建築大工"]
[null,null,null,"●[95103]技能グランプリ銅賞（第３位）建築大工"]
[null,null,null,"●[95104]技能グランプリ敢闘賞建築大工"]
[null,null,null,"※レベル2及び3となる資格の保有は必須"]
["レベル3","1505日（7年）","108日（0.5年）","下記のうちから2つ以上"]
[null,null,null,"・[10601]１級大工工事作業技能士　又は　[10602]２級大工工事作業技能士"]
[null,null,null,"・[10701]単一等級枠組壁工事作業技能士"]
[null,null,null,"・[30007]１級建築施工管理技士　又は　[30008]２級建築施工管理技士"]
[null,null,null,"・[30002]１級建築士　若しくは　[30003]２級建築士　又は　[30004]木造建築士"]
[null,null,null,"・[30091]職業訓練指導員（建築科・枠組壁建築科・プレハブ建築科）"]
[null,null,null,"・[40001]木材加工用機械作業主任者"]
[null,null,null,"・[40011]足場の組立て等作業主任者"]
[null,null,null,"・[40012]建築物の鉄骨の組立て等作業主任者"]
[null,null,null,"・[40019]木造建築物の組立て等作業主任者"]
[null,null,null,"・[92001]青年優秀施工者土地・建設産業局長顕彰（大工）"]
[null,null,null,"・[30092]プレハブ建築マイスター"]
[null,null,null,"・[30093]認定ログビルダー"]
[null,null,null,"※レベル2となる資格の保有は必須"]
["レベル2","645日（3年）","－","＜必須＞[60010]丸のこ等取扱い作業従事者教育（労働安全衛生法第６０条）"]
[null,null,null,"＜必須＞[50052]足場の組立て等作業従事者特別教育　又は　[40011]足場の組立て等作業主任者"]
[null,null,null,"注）●印のあるものは、同レベル内ではいずれかでＯＫ"]
[]
["（入力値）",{"$f":"結果反映シート!J5","v":"430日（2年）未満"},{"$f":"結果反映シート!J7","v":"職長：108日（0.5年）未満、職長・班長：108日（0.5年）未満"}]

{"sheet":"硝子工事","index":38,"n_rows":26,"n_cols":4,"rows_kept":26,"cut":false,"hidden":false,"merged":[[25,2,25,3],[19,0,22,0],[19,1,22,1],[19,2,22,2],[4,0,13,0],[4,1,13,1],[4,2,13,2],[14,0,18,0],[14,1,18,1],[14,2,18,2]]}
["★レベル達成度詳細★",null,null,{"$f":"\"技能者氏名：\"&結果反映シート!C7","v":"技能者氏名："}]
[]
["【硝子工事】",null,null,"※チェックがつけられた資格には色が付いています。\nレベルアップの参考にして下さい。"]
[null,"就業日数","職長経験","資格"]
["レベル4","2150日（10年）","645日（3年）","●[00033]登録硝子工事基幹技能者"]
[null,null,null,"●[91014]優秀施工者国土交通大臣顕彰（ガラス工）"]
[null,null,null,"●[93001]安全優良職長厚生労働大臣顕彰"]
[null,null,null,"●[30007]１級建築施工管理技士"]
[null,null,null,"●卓越した技能者（現代の名工）"]
[null,null,null,"●[95101]技能グランプリ金賞（第１位）建築大工"]
[null,null,null,"●[95102]技能グランプリ銀賞（第２位）建築大工"]
[null,null,null,"●[95103]技能グランプリ銅賞（第３位）建築大工"]
[null,null,null,"●[95104]技能グランプリ敢闘賞建築大工"]
[null,null,null,"※レベル2及び3となる資格の保有は必須"]
["レベル3","1075日（5年）","645日（3年）","●[12801]１級ガラス工事作業技能士"]
[null,null,null,"●[92014]青年優秀施工者土地・建設産業局長顕彰（ガラス工）"]
[null,null,null,"●[30008]２級建築施工管理技士"]
[null,null,null,"＜必須＞[60001,60011]職長・安全衛生責任者教育"]
[null,null,null,"※レベル2となる資格の保有は必須"]
["レベル2","645日（3年）","－","●[12802]２級ガラス工事作業技能士"]
[null,null,null,"●[40039]高所作業者運転（作業床の高さ１０m以上）"]
[null,null,null,"●[40011]足場の組立て等作業主任者"]
[null,null,null,"●[40040]玉掛け（つり上げ荷重１t以上のクレーン用）"]
[null,null,null,"注）●印のあるものは、同レベル内ではいずれかでＯＫ"]
[]
["（入力値）",{"$f":"結果反映シート!J5","v":"430日（2年）未満"},{"$f":"結果反映シート!J7","v":"職長：108日（0.5年）未満、職長・班長：108日（0.5年）未満"}]

{"sheet":"ＡＬＣ","index":39,"n_rows":15,"n_cols":4,"rows_kept":15,"cut":false,"hidden":false,"merged":[[14,2,14,3],[10,0,11,0],[10,1,11,1],[10,2,11,2],[4,0,6,0],[4,1,6,1],[4,2,6,2],[7,0,9,0],[7,1,9,1],[7,2,9,2]]}
["★レベル達成度詳細★",null,null,{"$f":"\"技能者氏名：\"&結果反映シート!C7","v":"技能者氏名："}]
[]
["【ＡＬＣ】",null,null,"※チェックがつけられた資格には色が付いています。\nレベルアップの参考にして下さい。"]
[null,"就業日数","職長経験","資格"]
["レベル4","2150日（10年）","645日（3年）","●[00034]登録ＡＬＣ基幹技能者"]
[null,null,null,"●[91022]優秀施工者国土交通大臣顕彰（ＡＬＣ工）"]
[null,null,null,"※レベル2及び3となる資格の保有は必須"]
["レベル3","1505日（7年）","215日（1年）","＜必須＞[11301]単一等級エーエルシーパネル作業工事技能士"]
[null,null,null,"＜必須＞[60001,60011]職長・安全衛生責任者教育"]
[null,null,null,"※レベル2となる資格の保有は必須"]
["レベル2","645日（3年）","－","＜必須＞[50003]アーク溶接"]
[null,null,null,"＜必須＞[40040]玉掛け（つり上げ荷重１t以上のクレーン用）"]
[null,null,null,"注）●印のあるものは、同レベル内ではいずれかでＯＫ"]
[]
["（入力値）",{"$f":"結果反映シート!J5","v":"430日（2年）未満"},{"$f":"結果反映シート!J7","v":"職長：108日（0.5年）未満、職長・班長：108日（0.5年）未満"}]

{"sheet":"土工","index":40,"n_rows":49,"n_cols":4,"rows_kept":49,"cut":false,"hidden":false,"merged":[[48,2,48,3],[32,0,45,0],[32,1,45,1],[32,2,45,2],[4,0,8,0],[4,1,8,1],[4,2,8,2],[9,0,31,0],[9,1,31,1],[9,2,31,2]]}
["★レベル達成度詳細★",null,null,{"$f":"\"技能者氏名：\"&結果反映シート!C7","v":"技能者氏名："}]
[]
["【土工】",null,null,"※チェックがつけられた資格には色が付いています。\nレベルアップの参考にして下さい。"]
[null,"就業日数","職長経験","資格"]
["レベル4","2150日（10年）","645日（3年）","●[00035]登録土工基幹技能者"]
[null,null,null,"●[30005]１級土木施工管理技士"]
[null,null,null,"●[30009]１級建築機械施工技士"]
[null,null,null,"●[91003]優秀施工者国土交通大臣顕彰（土工）"]
[null,null,null,"※レベル2及び3となる資格の保有は必須"]
["レベル3","1505日（7年）","215日（1年）","●下記資格のうち1つ以上"]
[null,null,null,"・[92003]青年優秀施工者土地・建設産業局長顕彰（土工）"]
[null,null,null,"・[30010]２級建設機械施工技士"]
[null,null,null,"・[30095]職業訓練指導員（建設機械科、建設機械運転科、土木科）"]
[null,null,null,"・[34001]甲種火薬取扱保安責任者"]
[null,null,null,"・[34002]乙種火薬取扱保安責任者"]
[null,null,null,"・[34003]発破技士"]
[null,null,null,"・[40005]地山の掘削および土止め支保工作業主任者"]
[null,null,null,"●下記資格のうち2つ以上"]
[null,null,null,"・[40004]コンクリート破砕機器作業主任者"]
[null,null,null,"・[40006]地山の掘削作業主任者（旧）"]
[null,null,null,"・[40007]土止め支保工作業主任者（旧）"]
[null,null,null,"・[40010]型枠支保工の組立て等作業主任者"]
[null,null,null,"・[40011]足場の組立て等作業主任者"]
[null,null,null,"・[40017]はい作業主任者"]
[null,null,null,"・[40031]小型移動式クレーン運転（つり上げ重量５t以上）"]
[null,null,null,"・[40032]ガス溶接技能講習"]
[null,null,null,"・[40033]フォークリフト運転（最大荷重１t以上）"]
[null,null,null,"・[40035]車両系建設機械（整地・運搬・積込み用および掘削用）運転（機体重量３t以上）"]
[null,null,null,"・[40038]不整地運搬車運転（最大積載量１t以上）"]
[null,null,null,"・[40039]高所作業者運転（作業床の高さ１０m以上）"]
[null,null,null,"＜必須＞[60001,60011]職長・安全衛生責任者教育"]
[null,null,null,"※レベル2となる資格の保有は必須"]
["レベル2","430日（2年）","－","＜必須＞下記資格のうち2つ以上"]
[null,null,null,"・[50012]小型車両系建設機械（整地運搬積込機・掘削機・基礎工事機・解体用機械）の運転（機体重量３t未満）又は[40035]車両系建設機械（整地・運搬・積込み用および掘削用）運転（機体重量３t以上）"]
[null,null,null,"・[40040]玉掛け（つり上げ荷重１t以上のクレーン用）"]
[null,null,null,"・[50001]研削といし・自由研削といしの取替・取替時試運転"]
[null,null,null,"・[50007]不整地運搬車の運転（最大積載量１t未満）"]
[null,null,null,"・[50010]立木伐木（胸高直径７０cm以上、胸高直径２０cm以上重心偏・つりきり・かかり木）"]
[null,null,null,"・[50013]基礎工事用機械の運転（非自走式）"]
[null,null,null,"・[50014]基礎工事用機械の運転（自走式）"]
[null,null,null,"・[50015]締固め用機械（ローラー）の運転"]
[null,null,null,"・[50016]コンクリート打設用機械の作業装置の操作"]
[null,null,null,"・[50024]クレーンの運転（つり上げ荷重５t未満およびつり上げ荷重５t以上の跨線テルハ）"]
[null,null,null,"・[50052]足場の組立て等作業従事者特別教育"]
[null,null,null,"・[50053]ロープ高所作業"]
[null,null,null,"・[50055]電気取扱業務（低圧電気取扱業務）"]
[null,null,null,"注）●印のあるものは、同レベル内ではいずれかでＯＫ"]
[]
["（入力値）",{"$f":"結果反映シート!J5","v":"430日（2年）未満"},{"$f":"結果反映シート!J7","v":"職長：108日（0.5年）未満、職長・班長：108日（0.5年）未満"}]